{"text_format":"1","workbook":"xlsx","n_sheets":4,"sheets":["Produktionsanlæg","Distributionsanlæg","Fællesfunktionsanlæg","Drop downliste"],"not_rendered":{"charts":0,"images":0,"macros":1,"external_links":0,"defined_names":2,"comments":0,"pivot_tables":0},"unopened":[],"bounds":{"document_bytes":16777216,"sheet_cells":100000,"rows_first":2000,"rows_last":500,"rows_between":2000,"halvings":0,"cell_chars":16384,"cell_head_chars":4096},"cells_cut":0,"cells_raw":0,"read":"whole","date_system":"1900"}

{"sheet":"Produktionsanlæg","index":0,"n_rows":1060,"n_cols":6,"rows_kept":1060,"cut":false,"hidden":false,"merged":[[0,5,1,5],[0,0,1,0],[0,1,1,1],[0,2,1,2],[0,3,1,3],[0,4,1,4]]}
["Produktionsanlæg","Enhed","Standard-levetid","Samlet mængde per 31/12-2014","Samlet mængde per 31/12-2015","Bemærk-ninger"]
[]
["Boringer"]
["Boring (inkl. etablering, forerør, filter og prøvepumpning)","dybdemeter",30,3055,2935]
["Råvandsstationer"]
["Råvandsstation komplet montering og boringshus/tørbrønd","stk.",30,53,51]
["Instrumenter (flowmåler+tryk transducer+alarmer)","stk.",10,475,460]
["Pumpe inkl. stigrør og forerørsforsejlinger mv. - 1","m³/h ",15,50,50,"KH"]
["Pumpe inkl. stigrør og forerørsforsejlinger mv. - 2","m³/h ",15,50,50,"KH"]
["Pumpe inkl. stigrør og forerørsforsejlinger mv. - 3","m³/h ",15,50,50,"KH"]
["Pumpe inkl. stigrør og forerørsforsejlinger mv. - 4","m³/h ",15,50,50,"KH"]
["Pumpe inkl. stigrør og forerørsforsejlinger mv. - 5","m³/h ",15,50,50,"KH"]
["Pumpe inkl. stigrør og forerørsforsejlinger mv. - 6","m³/h ",15,50,50,"KH"]
["Pumpe inkl. stigrør og forerørsforsejlinger mv. - 7","m³/h ",15,50,50,"KH"]
["Pumpe inkl. stigrør og forerørsforsejlinger mv. - 8","m³/h ",15,50,50,"KH"]
["Pumpe inkl. stigrør og forerørsforsejlinger mv. - 9","m³/h ",15,50,50,"KH"]
["Pumpe inkl. stigrør og forerørsforsejlinger mv. - 10","m³/h ",15,50,50,"KH"]
["Pumpe inkl. stigrør og forerørsforsejlinger mv. - 11","m³/h ",15,50,50,"KH"]
["Pumpe inkl. stigrør og forerørsforsejlinger mv. - 12","m³/h ",15,50,50,"VG"]
["Pumpe inkl. stigrør og forerørsforsejlinger mv. - 13","m³/h ",15,50,50,"VG"]
["Pumpe inkl. stigrør og forerørsforsejlinger mv. - 14","m³/h ",15,50,50,"VG"]
["Pumpe inkl. stigrør og forerørsforsejlinger mv. - 15","m³/h ",15,50,50,"BR"]
["Pumpe inkl. stigrør og forerørsforsejlinger mv. - 16","m³/h ",15,50,50,"BR"]
["Pumpe inkl. stigrør og forerørsforsejlinger mv. - 17","m³/h ",15,50,50,"BR"]
["Pumpe inkl. stigrør og forerørsforsejlinger mv. - 18","m³/h ",15,50,50,"BR"]
["Pumpe inkl. stigrør og forerørsforsejlinger mv. - 19","m³/h ",15,50,50,"BR"]
["Pumpe inkl. stigrør og forerørsforsejlinger mv. - 20","m³/h ",15,50,50,"BR"]
["Pumpe inkl. stigrør og forerørsforsejlinger mv. - 21","m³/h ",15,45,45,"TH"]
["Pumpe inkl. stigrør og forerørsforsejlinger mv. - 22","m³/h ",15,50,50,"DR1"]
["Pumpe inkl. stigrør og forerørsforsejlinger mv. - 23","m³/h ",15,50,50,"DR1"]
["Pumpe inkl. stigrør og forerørsforsejlinger mv. - 24","m³/h ",15,50,50,"DR1"]
["Pumpe inkl. stigrør og forerørsforsejlinger mv. - 25","m³/h ",15,50,50,"DR1"]
["Pumpe inkl. stigrør og forerørsforsejlinger mv. - 26","m³/h ",15,50,50,"DR1"]
["Pumpe inkl. stigrør og forerørsforsejlinger mv. - 27","m³/h ",15,50,50,"DR1"]
["Pumpe inkl. stigrør og forerørsforsejlinger mv. - 28","m³/h ",15,50,50,"DR1"]
["Pumpe inkl. stigrør og forerørsforsejlinger mv. - 29","m³/h ",15,50,50,"DR1"]
["Pumpe inkl. stigrør og forerørsforsejlinger mv. - 30","m³/h ",15,80,80,"DR2"]
["Pumpe inkl. stigrør og forerørsforsejlinger mv. - 31","m³/h ",15,80,80,"DR2"]
["Pumpe inkl. stigrør og forerørsforsejlinger mv. - 32","m³/h ",15,80,80,"DR2"]
["Pumpe inkl. stigrør og forerørsforsejlinger mv. - 33","m³/h ",15,30,30,"DR2"]
["Pumpe inkl. stigrør og forerørsforsejlinger mv. - 34","m³/h ",15,50,50,"ENG"]
["Pumpe inkl. stigrør og forerørsforsejlinger mv. - 35","m³/h ",15,125,125,"ENG"]
["Pumpe inkl. stigrør og forerørsforsejlinger mv. - 36","m³/h ",15,125,125,"ENG"]
["Pumpe inkl. stigrør og forerørsforsejlinger mv. - 37","m³/h ",15,125,125,"ENG"]
["Pumpe inkl. stigrør og forerørsforsejlinger mv. - 38","m³/h ",15,150,50,"ENG"]
["Pumpe inkl. stigrør og forerørsforsejlinger mv. - 39","m³/h ",15,30,30,"HVO"]
["Pumpe inkl. stigrør og forerørsforsejlinger mv. - 40","m³/h ",15,30,30,"HVO"]
["Pumpe inkl. stigrør og forerørsforsejlinger mv. - 41","m³/h ",15,30,30,"HVO"]
["Pumpe inkl. stigrør og forerørsforsejlinger mv. - 42","m³/h ",15,30,30,"HVO"]
["Pumpe inkl. stigrør og forerørsforsejlinger mv. - 43","m³/h ",15,30,30,"HVO"]
["Pumpe inkl. stigrør og forerørsforsejlinger mv. - 44","m³/h ",15,30,30,"FER"]
["Pumpe inkl. stigrør og forerørsforsejlinger mv. - 45","m³/h ",15,30,30,"FER"]
["Pumpe inkl. stigrør og forerørsforsejlinger mv. - 46","m³/h ",15,50,50,"FLØ"]
["Pumpe inkl. stigrør og forerørsforsejlinger mv. - 47","m³/h ",15,50,50,"FLØ"]
["Pumpe inkl. stigrør og forerørsforsejlinger mv. - 48","m³/h ",15,15,15,"FLØ"]
["Pumpe inkl. stigrør og forerørsforsejlinger mv. - 49","m³/h ",15,50,0,"SOL - nedlagt"]
["Pumpe inkl. stigrør og forerørsforsejlinger mv. - 50","m³/h ",15,8,0,"SEB - nedlagt"]
["Pumpe inkl. stigrør og forerørsforsejlinger mv. - 51","m³/h ",15,50,50,"NIB"]
["Pumpe inkl. stigrør og forerørsforsejlinger mv. - 52","m³/h ",15,50,50,"NIB"]
["Pumpe inkl. stigrør og forerørsforsejlinger mv. - 53","m³/h ",15,50,50,"NIB"]
["Pumpe inkl. stigrør og forerørsforsejlinger mv. - 54","m³/h ",15,0]
["Pumpe inkl. stigrør og forerørsforsejlinger mv. - 55","m³/h ",15,0]
["Pumpe inkl. stigrør og forerørsforsejlinger mv. - 56","m³/h ",15,0]
["Pumpe inkl. stigrør og forerørsforsejlinger mv. - 57","m³/h ",15,0]
["Pumpe inkl. stigrør og forerørsforsejlinger mv. - 58","m³/h ",15,0]
["Pumpe inkl. stigrør og forerørsforsejlinger mv. - 59","m³/h ",15,0]
["Pumpe inkl. stigrør og forerørsforsejlinger mv. - 60","m³/h ",15,0]
["Pumpe inkl. stigrør og forerørsforsejlinger mv. - 61","m³/h ",15,0]
["Pumpe inkl. stigrør og forerørsforsejlinger mv. - 62","m³/h ",15,0]
["Pumpe inkl. stigrør og forerørsforsejlinger mv. - 63","m³/h ",15,0]
["Pumpe inkl. stigrør og forerørsforsejlinger mv. - 64","m³/h ",15,0]
["Pumpe inkl. stigrør og forerørsforsejlinger mv. - 65","m³/h ",15,0]
["Pumpe inkl. stigrør og forerørsforsejlinger mv. - 66","m³/h ",15,0]
["Pumpe inkl. stigrør og forerørsforsejlinger mv. - 67","m³/h ",15,0]
["Pumpe inkl. stigrør og forerørsforsejlinger mv. - 68","m³/h ",15,0]
["Pumpe inkl. stigrør og forerørsforsejlinger mv. - 69","m³/h ",15,0]
["Pumpe inkl. stigrør og forerørsforsejlinger mv. - 70","m³/h ",15,0]
["Pumpe inkl. stigrør og forerørsforsejlinger mv. - 71","m³/h ",15,0]
["Pumpe inkl. stigrør og forerørsforsejlinger mv. - 72","m³/h ",15,0]
["Pumpe inkl. stigrør og forerørsforsejlinger mv. - 73","m³/h ",15,0]
["Pumpe inkl. stigrør og forerørsforsejlinger mv. - 74","m³/h ",15,0]
["Pumpe inkl. stigrør og forerørsforsejlinger mv. - 75","m³/h ",15,0]
["Pumpe inkl. stigrør og forerørsforsejlinger mv. - 76","m³/h ",15,0]
["Pumpe inkl. stigrør og forerørsforsejlinger mv. - 77","m³/h ",15,0]
["Pumpe inkl. stigrør og forerørsforsejlinger mv. - 78","m³/h ",15,0]
["Pumpe inkl. stigrør og forerørsforsejlinger mv. - 79","m³/h ",15,0]
["Pumpe inkl. stigrør og forerørsforsejlinger mv. - 80","m³/h ",15,0]
["Pumpe inkl. stigrør og forerørsforsejlinger mv. - 81","m³/h ",15,0]
["Pumpe inkl. stigrør og forerørsforsejlinger mv. - 82","m³/h ",15,0]
["Pumpe inkl. stigrør og forerørsforsejlinger mv. - 83","m³/h ",15,0]
["Pumpe inkl. stigrør og forerørsforsejlinger mv. - 84","m³/h ",15,0]
["Pumpe inkl. stigrør og forerørsforsejlinger mv. - 85","m³/h ",15,0]
["Pumpe inkl. stigrør og forerørsforsejlinger mv. - 86","m³/h ",15,0]
["Pumpe inkl. stigrør og forerørsforsejlinger mv. - 87","m³/h ",15,0]
["Pumpe inkl. stigrør og forerørsforsejlinger mv. - 88","m³/h ",15,0]
["Pumpe inkl. stigrør og forerørsforsejlinger mv. - 89","m³/h ",15,0]
["Pumpe inkl. stigrør og forerørsforsejlinger mv. - 90","m³/h ",15,0]
["Erstatninger (OBS ingen øst-tillæg eller øvrige tillæg) ","stk.",30,0]
["Hegn","stk.",15,1,1,"TH"]
["Elanlæg","boring",20,53,51]
["SRO anlæg","boring",10,52,50,"-TH"]
["Råvandsledninger - Land"]
["Ø 50mm < Ledningsnet ≤ Ø110 mm","meter",75,360.01,{"$f":"370.57","v":370.57}]
["Ø110 mm < Ledningsnet ≤ Ø 250 mm","meter",75,3328.94,{"$f":"4.95+2521.24+31.56+249.87+1.08+1673.3+1.45+2.26+755.83-1.08+258.85+1.4","v":5500.7099999999991}]
["Ø 250 mm < Ledningsnet ≤ Ø 500mm","meter",75,3038.65,{"$f":"3.4+166.25+267.86+783.36+310.47+253.87+6.88+1095.58","v":2887.67}]
["Ledningsnet > Ø 500 mm","meter",75,0]
["Råvandsledninger - By"]
["Ø 50mm < Ledningsnet ≤ Ø110 mm","meter",75,0]
["Ø110 mm < Ledningsnet ≤ Ø 250 mm","meter",75,1.08,1.08]
["Ø 250 mm < Ledningsnet ≤ Ø 500mm","meter",75,0]
["Ledningsnet > Ø 500 mm","meter",75,0]
["Råvandsledninger - City"]
["Ø 50mm < Ledningsnet ≤ Ø110 mm","meter",75,0]
["Ø110 mm < Ledningsnet ≤ Ø 250 mm","meter",75,0]
["Ø 250 mm < Ledningsnet ≤ Ø 500mm","meter",75,0]
["Ledningsnet > Ø 500 mm","meter",75,0]
["Vandværk 1"]
["Beluftningsanlæg, iltningstrappe, Konstruktioner","m³/h ",50,0,null,"Agertoften"]
["Beluftningsanlæg, iltningstrappe, Mek./EL","m³/h ",25,0]
["Beluftningsanlæg, ika-beluftning, Konstruktioner","m³/h ",50,0]
["Beluftningsanlæg, ika-beluftning, Mek./EL","m³/h ",25,0]
["Beluftningsanlæg, bundbeluftbning, Konstruktioner","m³/h ",50,0]
["Beluftningsanlæg, bundbeluftbning, Mek./EL","m³/h ",25,0]
["Beluftningsanlæg, rislebakke, Konstruktioner","m³/h ",50,0]
["Beluftningsanlæg, rislebakke, Mek./EL","m³/h ",25,0]
["Beluftningsanlæg, kompressorbeluftning","m³/h ",25,0]
["Beluftningsanlæg, ren ilt","m³/h ",25,0]
["Behandlingsanlæg, kalk anlæg","m³/h ",25,0]
["Behandlingsanlæg, luddosering","m³/h ",25,0]
["Filteranlæg, åbne filtre, enkelt filtrering, Konstruktioner","m³/h ",50,0]
["Filteranlæg, åbne filtre, enkelt filtrering, Mek./EL","m³/h ",25,0]
["Filteranlæg, åbne filtre, dobbelt filtrering, Konstruktioner","m³/h ",50,0]
["Filteranlæg, åbne filtre, dobbelt filtrering, Mek./EL","m³/h ",25,0]
["Filteranlæg, trykfiltre, enkelt filtrering","m³/h ",25,0]
["Filteranlæg, trykfiltre, dobbelt filtrering","m³/h ",25,0]
["Rentvandsbeholder  insitu støbt","m³",50,0]
["Rentvandsbeholder  element","m³",50,0]
["Udpumpningsanlæg, rentvandspumper på vandværk","m³/h ",25,100,100]
["Udpumpningsanlæg, frekvensomformer","kW",25,7.5,8]
["Udpumpningsanlæg, Hydrofor","liter",25,0]
["Skyllevand-/slamhåndteringsanlæg - lukkede betonbeholdere","m³",50,0]
["Skyllevand-/slamhåndteringsanl. - åbne med faste sider/bund","m³",50,0]
["Skyllevand-/slamhåndteringsanlæg - jordbassiner","m³",50,0]
["Skyllevandsbehandling, inkl. UV-filter mv., Mek./EL","m³/h.",25,0]
["Skyllevandsbehandling, inkl. UV-filter mv., SRO","m³/h.",10,0]
["Nødstrømsanlæg på vandværk","kW",25,0]
["Elanlæg og SRO-anlæg - vandværk, Elanlæg","m³/h.",25,100,100]
["Elanlæg og SRO-anlæg - vandværk, SRO","m³/h.",10,100,100]
["Vandværk 2"]
["Beluftningsanlæg, iltningstrappe, Konstruktioner","m³/h ",50,0,null,"Nordtoft"]
["Beluftningsanlæg, iltningstrappe, Mek./EL","m³/h ",25,0]
["Beluftningsanlæg, ika-beluftning, Konstruktioner","m³/h ",50,0]
["Beluftningsanlæg, ika-beluftning, Mek./EL","m³/h ",25,0]
["Beluftningsanlæg, bundbeluftbning, Konstruktioner","m³/h ",50,0]
["Beluftningsanlæg, bundbeluftbning, Mek./EL","m³/h ",25,0]
["Beluftningsanlæg, rislebakke, Konstruktioner","m³/h ",50,0]
["Beluftningsanlæg, rislebakke, Mek./EL","m³/h ",25,0]
["Beluftningsanlæg, kompressorbeluftning","m³/h ",25,0]
["Beluftningsanlæg, ren ilt","m³/h ",25,0]
["Behandlingsanlæg, kalk anlæg","m³/h ",25,0]
["Behandlingsanlæg, luddosering","m³/h ",25,0]
["Filteranlæg, åbne filtre, enkelt filtrering, Konstruktioner","m³/h ",50,0]
["Filteranlæg, åbne filtre, enkelt filtrering, Mek./EL","m³/h ",25,0]
["Filteranlæg, åbne filtre, dobbelt filtrering, Konstruktioner","m³/h ",50,0]
["Filteranlæg, åbne filtre, dobbelt filtrering, Mek./EL","m³/h ",25,0]
["Filteranlæg, trykfiltre, enkelt filtrering","m³/h ",25,0]
["Filteranlæg, trykfiltre, dobbelt filtrering","m³/h ",25,0]
["Rentvandsbeholder  insitu støbt","m³",50,0]
["Rentvandsbeholder  element","m³",50,0]
["Udpumpningsanlæg, rentvandspumper på vandværk","m³/h ",25,150,150]
["Udpumpningsanlæg, frekvensomformer","kW",25,0]
["Udpumpningsanlæg, Hydrofor","liter",25,0]
["Skyllevand-/slamhåndteringsanlæg - lukkede betonbeholdere","m³",50,0]
["Skyllevand-/slamhåndteringsanl. - åbne med faste sider/bund","m³",50,0]
["Skyllevand-/slamhåndteringsanlæg - jordbassiner","m³",50,0]
["Skyllevandsbehandling, inkl. UV-filter mv., Mek./EL","m³/h.",25,0]
["Skyllevandsbehandling, inkl. UV-filter mv., SRO","m³/h.",10,0]
["Nødstrømsanlæg på vandværk","kW",25,0]
["Elanlæg og SRO-anlæg - vandværk, Elanlæg","m³/h.",25,150,150]
["Elanlæg og SRO-anlæg - vandværk, SRO","m³/h.",10,150,150]
["Vandværk 3"]
["Beluftningsanlæg, iltningstrappe, Konstruktioner","m³/h ",50,0,null,"Nr. Tranders"]
["Beluftningsanlæg, iltningstrappe, Mek./EL","m³/h ",25,0]
["Beluftningsanlæg, ika-beluftning, Konstruktioner","m³/h ",50,0]
["Beluftningsanlæg, ika-beluftning, Mek./EL","m³/h ",25,0]
["Beluftningsanlæg, bundbeluftbning, Konstruktioner","m³/h ",50,0]
["Beluftningsanlæg, bundbeluftbning, Mek./EL","m³/h ",25,0]
["Beluftningsanlæg, rislebakke, Konstruktioner","m³/h ",50,0]
["Beluftningsanlæg, rislebakke, Mek./EL","m³/h ",25,0]
["Beluftningsanlæg, kompressorbeluftning","m³/h ",25,0]
["Beluftningsanlæg, ren ilt","m³/h ",25,0]
["Behandlingsanlæg, kalk anlæg","m³/h ",25,0]
["Behandlingsanlæg, luddosering","m³/h ",25,0]
["Filteranlæg, åbne filtre, enkelt filtrering, Konstruktioner","m³/h ",50,0]
["Filteranlæg, åbne filtre, enkelt filtrering, Mek./EL","m³/h ",25,0]
["Filteranlæg, åbne filtre, dobbelt filtrering, Konstruktioner","m³/h ",50,0]
["Filteranlæg, åbne filtre, dobbelt filtrering, Mek./EL","m³/h ",25,0]
["Filteranlæg, trykfiltre, enkelt filtrering","m³/h ",25,0]
["Filteranlæg, trykfiltre, dobbelt filtrering","m³/h ",25,0]
["Rentvandsbeholder  insitu støbt","m³",50,0]
["Rentvandsbeholder  element","m³",50,0]
["Udpumpningsanlæg, rentvandspumper på vandværk","m³/h ",25,250,250]
["Udpumpningsanlæg, frekvensomformer","kW",25,75,75]
["Udpumpningsanlæg, Hydrofor","liter",25,0]
["Skyllevand-/slamhåndteringsanlæg - lukkede betonbeholdere","m³",50,0]
["Skyllevand-/slamhåndteringsanl. - åbne med faste sider/bund","m³",50,0]
["Skyllevand-/slamhåndteringsanlæg - jordbassiner","m³",50,0]
["Skyllevandsbehandling, inkl. UV-filter mv., Mek./EL","m³/h.",25,0]
["Skyllevandsbehandling, inkl. UV-filter mv., SRO","m³/h.",10,0]
["Nødstrømsanlæg på vandværk","kW",25,0]
["Elanlæg og SRO-anlæg - vandværk, Elanlæg","m³/h.",25,250,250]
["Elanlæg og SRO-anlæg - vandværk, SRO","m³/h.",10,250,250]
["Vandværk 4"]
["Beluftningsanlæg, iltningstrappe, Konstruktioner","m³/h ",50,0,null,"Fers. Beh."]
["Beluftningsanlæg, iltningstrappe, Mek./EL","m³/h ",25,0]
["Beluftningsanlæg, ika-beluftning, Konstruktioner","m³/h ",50,0]
["Beluftningsanlæg, ika-beluftning, Mek./EL","m³/h ",25,0]
["Beluftningsanlæg, bundbeluftbning, Konstruktioner","m³/h ",50,0]
["Beluftningsanlæg, bundbeluftbning, Mek./EL","m³/h ",25,0]
["Beluftningsanlæg, rislebakke, Konstruktioner","m³/h ",50,0]
["Beluftningsanlæg, rislebakke, Mek./EL","m³/h ",25,0]
["Beluftningsanlæg, kompressorbeluftning","m³/h ",25,0]
["Beluftningsanlæg, ren ilt","m³/h ",25,0]
["Behandlingsanlæg, kalk anlæg","m³/h ",25,0]
["Behandlingsanlæg, luddosering","m³/h ",25,0]
["Filteranlæg, åbne filtre, enkelt filtrering, Konstruktioner","m³/h ",50,0]
["Filteranlæg, åbne filtre, enkelt filtrering, Mek./EL","m³/h ",25,0]
["Filteranlæg, åbne filtre, dobbelt filtrering, Konstruktioner","m³/h ",50,0]
["Filteranlæg, åbne filtre, dobbelt filtrering, Mek./EL","m³/h ",25,0]
["Filteranlæg, trykfiltre, enkelt filtrering","m³/h ",25,0]
["Filteranlæg, trykfiltre, dobbelt filtrering","m³/h ",25,0]
["Rentvandsbeholder  insitu støbt","m³",50,500,500]
["Rentvandsbeholder  element","m³",50,0]
["Udpumpningsanlæg, rentvandspumper på vandværk","m³/h ",25,0]
["Udpumpningsanlæg, frekvensomformer","kW",25,0]
["Udpumpningsanlæg, Hydrofor","liter",25,0]
["Skyllevand-/slamhåndteringsanlæg - lukkede betonbeholdere","m³",50,0]
["Skyllevand-/slamhåndteringsanl. - åbne med faste sider/bund","m³",50,0]
["Skyllevand-/slamhåndteringsanlæg - jordbassiner","m³",50,0]
["Skyllevandsbehandling, inkl. UV-filter mv., Mek./EL","m³/h.",25,0]
["Skyllevandsbehandling, inkl. UV-filter mv., SRO","m³/h.",10,0]
["Nødstrømsanlæg på vandværk","kW",25,0]
["Elanlæg og SRO-anlæg - vandværk, Elanlæg","m³/h.",25,500,500]
["Elanlæg og SRO-anlæg - vandværk, SRO","m³/h.",10,500,500]
["Vandværk 5"]
["Beluftningsanlæg, iltningstrappe, Konstruktioner","m³/h ",50,0,null,"Sv. beh"]
["Beluftningsanlæg, iltningstrappe, Mek./EL","m³/h ",25,0]
["Beluftningsanlæg, ika-beluftning, Konstruktioner","m³/h ",50,0]
["Beluftningsanlæg, ika-beluftning, Mek./EL","m³/h ",25,0]
["Beluftningsanlæg, bundbeluftbning, Konstruktioner","m³/h ",50,0]
["Beluftningsanlæg, bundbeluftbning, Mek./EL","m³/h ",25,0]
["Beluftningsanlæg, rislebakke, Konstruktioner","m³/h ",50,0]
["Beluftningsanlæg, rislebakke, Mek./EL","m³/h ",25,0]
["Beluftningsanlæg, kompressorbeluftning","m³/h ",25,0]
["Beluftningsanlæg, ren ilt","m³/h ",25,0]
["Behandlingsanlæg, kalk anlæg","m³/h ",25,0]
["Behandlingsanlæg, luddosering","m³/h ",25,0]
["Filteranlæg, åbne filtre, enkelt filtrering, Konstruktioner","m³/h ",50,0]
["Filteranlæg, åbne filtre, enkelt filtrering, Mek./EL","m³/h ",25,0]
["Filteranlæg, åbne filtre, dobbelt filtrering, Konstruktioner","m³/h ",50,0]
["Filteranlæg, åbne filtre, dobbelt filtrering, Mek./EL","m³/h ",25,0]
["Filteranlæg, trykfiltre, enkelt filtrering","m³/h ",25,0]
["Filteranlæg, trykfiltre, dobbelt filtrering","m³/h ",25,0]
["Rentvandsbeholder  insitu støbt","m³",50,3000,3000]
["Rentvandsbeholder  element","m³",50,0]
["Udpumpningsanlæg, rentvandspumper på vandværk","m³/h ",25,85,85]
["Udpumpningsanlæg, frekvensomformer","kW",25,0]
["Udpumpningsanlæg, Hydrofor","liter",25,0]
["Skyllevand-/slamhåndteringsanlæg - lukkede betonbeholdere","m³",50,0]
["Skyllevand-/slamhåndteringsanl. - åbne med faste sider/bund","m³",50,0]
["Skyllevand-/slamhåndteringsanlæg - jordbassiner","m³",50,0]
["Skyllevandsbehandling, inkl. UV-filter mv., Mek./EL","m³/h.",25,0]
["Skyllevandsbehandling, inkl. UV-filter mv., SRO","m³/h.",10,0]
["Nødstrømsanlæg på vandværk","kW",25,0]
["Elanlæg og SRO-anlæg - vandværk, Elanlæg","m³/h.",25,85,85]
["Elanlæg og SRO-anlæg - vandværk, SRO","m³/h.",10,85,85]
["Vandværk 6"]
["Beluftningsanlæg, iltningstrappe, Konstruktioner","m³/h ",50,0,null,"Sv. T"]
["Beluftningsanlæg, iltningstrappe, Mek./EL","m³/h ",25,0]
["Beluftningsanlæg, ika-beluftning, Konstruktioner","m³/h ",50,0]
["Beluftningsanlæg, ika-beluftning, Mek./EL","m³/h ",25,0]
["Beluftningsanlæg, bundbeluftbning, Konstruktioner","m³/h ",50,0]
["Beluftningsanlæg, bundbeluftbning, Mek./EL","m³/h ",25,0]
["Beluftningsanlæg, rislebakke, Konstruktioner","m³/h ",50,0]
["Beluftningsanlæg, rislebakke, Mek./EL","m³/h ",25,0]
["Beluftningsanlæg, kompressorbeluftning","m³/h ",25,0]
["Beluftningsanlæg, ren ilt","m³/h ",25,0]
["Behandlingsanlæg, kalk anlæg","m³/h ",25,0]
["Behandlingsanlæg, luddosering","m³/h ",25,0]
["Filteranlæg, åbne filtre, enkelt filtrering, Konstruktioner","m³/h ",50,0]
["Filteranlæg, åbne filtre, enkelt filtrering, Mek./EL","m³/h ",25,0]
["Filteranlæg, åbne filtre, dobbelt filtrering, Konstruktioner","m³/h ",50,0]
["Filteranlæg, åbne filtre, dobbelt filtrering, Mek./EL","m³/h ",25,0]
["Filteranlæg, trykfiltre, enkelt filtrering","m³/h ",25,0]
["Filteranlæg, trykfiltre, dobbelt filtrering","m³/h ",25,0]
["Rentvandsbeholder  insitu støbt","m³",50,0]
["Rentvandsbeholder  element","m³",50,0]
["Udpumpningsanlæg, rentvandspumper på vandværk","m³/h ",25,275,275]
["Udpumpningsanlæg, frekvensomformer","kW",25,26,26]
["Udpumpningsanlæg, Hydrofor","liter",25,0]
["Skyllevand-/slamhåndteringsanlæg - lukkede betonbeholdere","m³",50,0]
["Skyllevand-/slamhåndteringsanl. - åbne med faste sider/bund","m³",50,0]
["Skyllevand-/slamhåndteringsanlæg - jordbassiner","m³",50,0]
["Skyllevandsbehandling, inkl. UV-filter mv., Mek./EL","m³/h.",25,0]
["Skyllevandsbehandling, inkl. UV-filter mv., SRO","m³/h.",10,0]
["Nødstrømsanlæg på vandværk","kW",25,0]
["Elanlæg og SRO-anlæg - vandværk, Elanlæg","m³/h.",25,275,275]
["Elanlæg og SRO-anlæg - vandværk, SRO","m³/h.",10,275,275]
["Vandværk 7"]
["Beluftningsanlæg, iltningstrappe, Konstruktioner","m³/h ",50,0,null,"Granhøj"]
["Beluftningsanlæg, iltningstrappe, Mek./EL","m³/h ",25,0]
["Beluftningsanlæg, ika-beluftning, Konstruktioner","m³/h ",50,0]
["Beluftningsanlæg, ika-beluftning, Mek./EL","m³/h ",25,0]
["Beluftningsanlæg, bundbeluftbning, Konstruktioner","m³/h ",50,0]
["Beluftningsanlæg, bundbeluftbning, Mek./EL","m³/h ",25,0]
["Beluftningsanlæg, rislebakke, Konstruktioner","m³/h ",50,0]
["Beluftningsanlæg, rislebakke, Mek./EL","m³/h ",25,0]
["Beluftningsanlæg, kompressorbeluftning","m³/h ",25,0]
["Beluftningsanlæg, ren ilt","m³/h ",25,0]
["Behandlingsanlæg, kalk anlæg","m³/h ",25,0]
["Behandlingsanlæg, luddosering","m³/h ",25,0]
["Filteranlæg, åbne filtre, enkelt filtrering, Konstruktioner","m³/h ",50,0]
["Filteranlæg, åbne filtre, enkelt filtrering, Mek./EL","m³/h ",25,0]
["Filteranlæg, åbne filtre, dobbelt filtrering, Konstruktioner","m³/h ",50,0]
["Filteranlæg, åbne filtre, dobbelt filtrering, Mek./EL","m³/h ",25,0]
["Filteranlæg, trykfiltre, enkelt filtrering","m³/h ",25,0]
["Filteranlæg, trykfiltre, dobbelt filtrering","m³/h ",25,0]
["Rentvandsbeholder  insitu støbt","m³",50,0]
["Rentvandsbeholder  element","m³",50,0]
["Udpumpningsanlæg, rentvandspumper på vandværk","m³/h ",25,250,250]
["Udpumpningsanlæg, frekvensomformer","kW",25,0]
["Udpumpningsanlæg, Hydrofor","liter",25,0]
["Skyllevand-/slamhåndteringsanlæg - lukkede betonbeholdere","m³",50,0]
["Skyllevand-/slamhåndteringsanl. - åbne med faste sider/bund","m³",50,0]
["Skyllevand-/slamhåndteringsanlæg - jordbassiner","m³",50,0]
["Skyllevandsbehandling, inkl. UV-filter mv., Mek./EL","m³/h.",25,0]
["Skyllevandsbehandling, inkl. UV-filter mv., SRO","m³/h.",10,0]
["Nødstrømsanlæg på vandværk","kW",25,0]
["Elanlæg og SRO-anlæg - vandværk, Elanlæg","m³/h.",25,250,250]
["Elanlæg og SRO-anlæg - vandværk, SRO","m³/h.",10,250,250]
["Vandværk 8"]
["Beluftningsanlæg, iltningstrappe, Konstruktioner","m³/h ",50,0,null,"Lerumb."]
["Beluftningsanlæg, iltningstrappe, Mek./EL","m³/h ",25,0]
["Beluftningsanlæg, ika-beluftning, Konstruktioner","m³/h ",50,0]
["Beluftningsanlæg, ika-beluftning, Mek./EL","m³/h ",25,0]
["Beluftningsanlæg, bundbeluftbning, Konstruktioner","m³/h ",50,0]
["Beluftningsanlæg, bundbeluftbning, Mek./EL","m³/h ",25,0]
["Beluftningsanlæg, rislebakke, Konstruktioner","m³/h ",50,0]
["Beluftningsanlæg, rislebakke, Mek./EL","m³/h ",25,0]
["Beluftningsanlæg, kompressorbeluftning","m³/h ",25,0]
["Beluftningsanlæg, ren ilt","m³/h ",25,0]
["Behandlingsanlæg, kalk anlæg","m³/h ",25,0]
["Behandlingsanlæg, luddosering","m³/h ",25,0]
["Filteranlæg, åbne filtre, enkelt filtrering, Konstruktioner","m³/h ",50,0]
["Filteranlæg, åbne filtre, enkelt filtrering, Mek./EL","m³/h ",25,0]
["Filteranlæg, åbne filtre, dobbelt filtrering, Konstruktioner","m³/h ",50,0]
["Filteranlæg, åbne filtre, dobbelt filtrering, Mek./EL","m³/h ",25,0]
["Filteranlæg, trykfiltre, enkelt filtrering","m³/h ",25,0]
["Filteranlæg, trykfiltre, dobbelt filtrering","m³/h ",25,0]
["Rentvandsbeholder  insitu støbt","m³",50,4000,4000]
["Rentvandsbeholder  element","m³",50,0]
["Udpumpningsanlæg, rentvandspumper på vandværk","m³/h ",25,180,240]
["Udpumpningsanlæg, frekvensomformer","kW",25,15,60]
["Udpumpningsanlæg, Hydrofor","liter",25,0]
["Skyllevand-/slamhåndteringsanlæg - lukkede betonbeholdere","m³",50,0]
["Skyllevand-/slamhåndteringsanl. - åbne med faste sider/bund","m³",50,0]
["Skyllevand-/slamhåndteringsanlæg - jordbassiner","m³",50,0]
["Skyllevandsbehandling, inkl. UV-filter mv., Mek./EL","m³/h.",25,0]
["Skyllevandsbehandling, inkl. UV-filter mv., SRO","m³/h.",10,0]
["Nødstrømsanlæg på vandværk","kW",25,60,60]
["Elanlæg og SRO-anlæg - vandværk, Elanlæg","m³/h.",25,180,240]
["Elanlæg og SRO-anlæg - vandværk, SRO","m³/h.",10,180,240]
["Vandværk 9"]
["Beluftningsanlæg, iltningstrappe, Konstruktioner","m³/h ",50,0,null,"Lundby TR"]
["Beluftningsanlæg, iltningstrappe, Mek./EL","m³/h ",25,0]
["Beluftningsanlæg, ika-beluftning, Konstruktioner","m³/h ",50,0]
["Beluftningsanlæg, ika-beluftning, Mek./EL","m³/h ",25,0]
["Beluftningsanlæg, bundbeluftbning, Konstruktioner","m³/h ",50,0]
["Beluftningsanlæg, bundbeluftbning, Mek./EL","m³/h ",25,0]
["Beluftningsanlæg, rislebakke, Konstruktioner","m³/h ",50,0]
["Beluftningsanlæg, rislebakke, Mek./EL","m³/h ",25,0]
["Beluftningsanlæg, kompressorbeluftning","m³/h ",25,0]
["Beluftningsanlæg, ren ilt","m³/h ",25,0]
["Behandlingsanlæg, kalk anlæg","m³/h ",25,0]
["Behandlingsanlæg, luddosering","m³/h ",25,0]
["Filteranlæg, åbne filtre, enkelt filtrering, Konstruktioner","m³/h ",50,0]
["Filteranlæg, åbne filtre, enkelt filtrering, Mek./EL","m³/h ",25,0]
["Filteranlæg, åbne filtre, dobbelt filtrering, Konstruktioner","m³/h ",50,0]
["Filteranlæg, åbne filtre, dobbelt filtrering, Mek./EL","m³/h ",25,0]
["Filteranlæg, trykfiltre, enkelt filtrering","m³/h ",25,0]
["Filteranlæg, trykfiltre, dobbelt filtrering","m³/h ",25,0]
["Rentvandsbeholder  insitu støbt","m³",50,0]
["Rentvandsbeholder  element","m³",50,0]
["Udpumpningsanlæg, rentvandspumper på vandværk","m³/h ",25,52,52]
["Udpumpningsanlæg, frekvensomformer","kW",25,5,5]
["Udpumpningsanlæg, Hydrofor","liter",25,0]
["Skyllevand-/slamhåndteringsanlæg - lukkede betonbeholdere","m³",50,0]
["Skyllevand-/slamhåndteringsanl. - åbne med faste sider/bund","m³",50,0]
["Skyllevand-/slamhåndteringsanlæg - jordbassiner","m³",50,0]
["Skyllevandsbehandling, inkl. UV-filter mv., Mek./EL","m³/h.",25,0]
["Skyllevandsbehandling, inkl. UV-filter mv., SRO","m³/h.",10,0]
["Nødstrømsanlæg på vandværk","kW",25,0]
["Elanlæg og SRO-anlæg - vandværk, Elanlæg","m³/h.",25,52,52]
["Elanlæg og SRO-anlæg - vandværk, SRO","m³/h.",10,52,52]
["Vandværk 10"]
["Beluftningsanlæg, iltningstrappe, Konstruktioner","m³/h ",50,0,null,"Mølleparken"]
["Beluftningsanlæg, iltningstrappe, Mek./EL","m³/h ",25,0]
["Beluftningsanlæg, ika-beluftning, Konstruktioner","m³/h ",50,0]
["Beluftningsanlæg, ika-beluftning, Mek./EL","m³/h ",25,0]
["Beluftningsanlæg, bundbeluftbning, Konstruktioner","m³/h ",50,0]
["Beluftningsanlæg, bundbeluftbning, Mek./EL","m³/h ",25,0]
["Beluftningsanlæg, rislebakke, Konstruktioner","m³/h ",50,0]
["Beluftningsanlæg, rislebakke, Mek./EL","m³/h ",25,0]
["Beluftningsanlæg, kompressorbeluftning","m³/h ",25,0]
["Beluftningsanlæg, ren ilt","m³/h ",25,0]
["Behandlingsanlæg, kalk anlæg","m³/h ",25,0]
["Behandlingsanlæg, luddosering","m³/h ",25,0]
["Filteranlæg, åbne filtre, enkelt filtrering, Konstruktioner","m³/h ",50,0]
["Filteranlæg, åbne filtre, enkelt filtrering, Mek./EL","m³/h ",25,0]
["Filteranlæg, åbne filtre, dobbelt filtrering, Konstruktioner","m³/h ",50,0]
["Filteranlæg, åbne filtre, dobbelt filtrering, Mek./EL","m³/h ",25,0]
["Filteranlæg, trykfiltre, enkelt filtrering","m³/h ",25,0]
["Filteranlæg, trykfiltre, dobbelt filtrering","m³/h ",25,0]
["Rentvandsbeholder  insitu støbt","m³",50,4000,4000]
["Rentvandsbeholder  element","m³",50,0]
["Udpumpningsanlæg, rentvandspumper på vandværk","m³/h ",25,32,32]
["Udpumpningsanlæg, frekvensomformer","kW",25,5,5]
["Udpumpningsanlæg, Hydrofor","liter",25,0]
["Skyllevand-/slamhåndteringsanlæg - lukkede betonbeholdere","m³",50,0]
["Skyllevand-/slamhåndteringsanl. - åbne med faste sider/bund","m³",50,0]
["Skyllevand-/slamhåndteringsanlæg - jordbassiner","m³",50,0]
["Skyllevandsbehandling, inkl. UV-filter mv., Mek./EL","m³/h.",25,0]
["Skyllevandsbehandling, inkl. UV-filter mv., SRO","m³/h.",10,0]
["Nødstrømsanlæg på vandværk","kW",25,0]
["Elanlæg og SRO-anlæg - vandværk, Elanlæg","m³/h.",25,32,32]
["Elanlæg og SRO-anlæg - vandværk, SRO","m³/h.",10,32,32]
["Vandværk 11"]
["Beluftningsanlæg, iltningstrappe, Konstruktioner","m³/h ",50,0,null,"Røgildsv."]
["Beluftningsanlæg, iltningstrappe, Mek./EL","m³/h ",25,0]
["Beluftningsanlæg, ika-beluftning, Konstruktioner","m³/h ",50,0]
["Beluftningsanlæg, ika-beluftning, Mek./EL","m³/h ",25,0]
["Beluftningsanlæg, bundbeluftbning, Konstruktioner","m³/h ",50,0]
["Beluftningsanlæg, bundbeluftbning, Mek./EL","m³/h ",25,0]
["Beluftningsanlæg, rislebakke, Konstruktioner","m³/h ",50,0]
["Beluftningsanlæg, rislebakke, Mek./EL","m³/h ",25,0]
["Beluftningsanlæg, kompressorbeluftning","m³/h ",25,0]
["Beluftningsanlæg, ren ilt","m³/h ",25,0]
["Behandlingsanlæg, kalk anlæg","m³/h ",25,0]
["Behandlingsanlæg, luddosering","m³/h ",25,0]
["Filteranlæg, åbne filtre, enkelt filtrering, Konstruktioner","m³/h ",50,0]
["Filteranlæg, åbne filtre, enkelt filtrering, Mek./EL","m³/h ",25,0]
["Filteranlæg, åbne filtre, dobbelt filtrering, Konstruktioner","m³/h ",50,0]
["Filteranlæg, åbne filtre, dobbelt filtrering, Mek./EL","m³/h ",25,0]
["Filteranlæg, trykfiltre, enkelt filtrering","m³/h ",25,0]
["Filteranlæg, trykfiltre, dobbelt filtrering","m³/h ",25,0]
["Rentvandsbeholder  insitu støbt","m³",50,0]
["Rentvandsbeholder  element","m³",50,0]
["Udpumpningsanlæg, rentvandspumper på vandværk","m³/h ",25,180,180]
["Udpumpningsanlæg, frekvensomformer","kW",25,35,35]
["Udpumpningsanlæg, Hydrofor","liter",25,0]
["Skyllevand-/slamhåndteringsanlæg - lukkede betonbeholdere","m³",50,0]
["Skyllevand-/slamhåndteringsanl. - åbne med faste sider/bund","m³",50,0]
["Skyllevand-/slamhåndteringsanlæg - jordbassiner","m³",50,0]
["Skyllevandsbehandling, inkl. UV-filter mv., Mek./EL","m³/h.",25,0]
["Skyllevandsbehandling, inkl. UV-filter mv., SRO","m³/h.",10,0]
["Nødstrømsanlæg på vandværk","kW",25,0]
["Elanlæg og SRO-anlæg - vandværk, Elanlæg","m³/h.",25,180,180]
["Elanlæg og SRO-anlæg - vandværk, SRO","m³/h.",10,180,180]
["Vandværk 12"]
["Beluftningsanlæg, iltningstrappe, Konstruktioner","m³/h ",50,0,null,"Øster Uttrup"]
["Beluftningsanlæg, iltningstrappe, Mek./EL","m³/h ",25,0]
["Beluftningsanlæg, ika-beluftning, Konstruktioner","m³/h ",50,0]
["Beluftningsanlæg, ika-beluftning, Mek./EL","m³/h ",25,0]
["Beluftningsanlæg, bundbeluftbning, Konstruktioner","m³/h ",50,0]
["Beluftningsanlæg, bundbeluftbning, Mek./EL","m³/h ",25,0]
["Beluftningsanlæg, rislebakke, Konstruktioner","m³/h ",50,0]
["Beluftningsanlæg, rislebakke, Mek./EL","m³/h ",25,0]
["Beluftningsanlæg, kompressorbeluftning","m³/h ",25,0]
["Beluftningsanlæg, ren ilt","m³/h ",25,0]
["Behandlingsanlæg, kalk anlæg","m³/h ",25,0]
["Behandlingsanlæg, luddosering","m³/h ",25,0]
["Filteranlæg, åbne filtre, enkelt filtrering, Konstruktioner","m³/h ",50,0]
["Filteranlæg, åbne filtre, enkelt filtrering, Mek./EL","m³/h ",25,0]
["Filteranlæg, åbne filtre, dobbelt filtrering, Konstruktioner","m³/h ",50,0]
["Filteranlæg, åbne filtre, dobbelt filtrering, Mek./EL","m³/h ",25,0]
["Filteranlæg, trykfiltre, enkelt filtrering","m³/h ",25,0]
["Filteranlæg, trykfiltre, dobbelt filtrering","m³/h ",25,0]
["Rentvandsbeholder  insitu støbt","m³",50,0]
["Rentvandsbeholder  element","m³",50,0]
["Udpumpningsanlæg, rentvandspumper på vandværk","m³/h ",25,125,125]
["Udpumpningsanlæg, frekvensomformer","kW",25,10,10]
["Udpumpningsanlæg, Hydrofor","liter",25,0]
["Skyllevand-/slamhåndteringsanlæg - lukkede betonbeholdere","m³",50,0]
["Skyllevand-/slamhåndteringsanl. - åbne med faste sider/bund","m³",50,0]
["Skyllevand-/slamhåndteringsanlæg - jordbassiner","m³",50,0]
["Skyllevandsbehandling, inkl. UV-filter mv., Mek./EL","m³/h.",25,0]
["Skyllevandsbehandling, inkl. UV-filter mv., SRO","m³/h.",10,0]
["Nødstrømsanlæg på vandværk","kW",25,0]
["Elanlæg og SRO-anlæg - vandværk, Elanlæg","m³/h.",25,125,125]
["Elanlæg og SRO-anlæg - vandværk, SRO","m³/h.",10,125,125]
["Vandværk 13"]
["Beluftningsanlæg, iltningstrappe, Konstruktioner","m³/h ",50,0,null,"Skovbakken"]
["Beluftningsanlæg, iltningstrappe, Mek./EL","m³/h ",25,0]
["Beluftningsanlæg, ika-beluftning, Konstruktioner","m³/h ",50,0]
["Beluftningsanlæg, ika-beluftning, Mek./EL","m³/h ",25,0]
["Beluftningsanlæg, bundbeluftbning, Konstruktioner","m³/h ",50,0]
["Beluftningsanlæg, bundbeluftbning, Mek./EL","m³/h ",25,0]
["Beluftningsanlæg, rislebakke, Konstruktioner","m³/h ",50,0]
["Beluftningsanlæg, rislebakke, Mek./EL","m³/h ",25,0]
["Beluftningsanlæg, kompressorbeluftning","m³/h ",25,0]
["Beluftningsanlæg, ren ilt","m³/h ",25,0]
["Behandlingsanlæg, kalk anlæg","m³/h ",25,0]
["Behandlingsanlæg, luddosering","m³/h ",25,0]
["Filteranlæg, åbne filtre, enkelt filtrering, Konstruktioner","m³/h ",50,0]
["Filteranlæg, åbne filtre, enkelt filtrering, Mek./EL","m³/h ",25,0]
["Filteranlæg, åbne filtre, dobbelt filtrering, Konstruktioner","m³/h ",50,0]
["Filteranlæg, åbne filtre, dobbelt filtrering, Mek./EL","m³/h ",25,0]
["Filteranlæg, trykfiltre, enkelt filtrering","m³/h ",25,0]
["Filteranlæg, trykfiltre, dobbelt filtrering","m³/h ",25,0]
["Rentvandsbeholder  insitu støbt","m³",50,0]
["Rentvandsbeholder  element","m³",50,0]
["Udpumpningsanlæg, rentvandspumper på vandværk","m³/h ",25,45,45]
["Udpumpningsanlæg, frekvensomformer","kW",25,5,5]
["Udpumpningsanlæg, Hydrofor","liter",25,0]
["Skyllevand-/slamhåndteringsanlæg - lukkede betonbeholdere","m³",50,0]
["Skyllevand-/slamhåndteringsanl. - åbne med faste sider/bund","m³",50,0]
["Skyllevand-/slamhåndteringsanlæg - jordbassiner","m³",50,0]
["Skyllevandsbehandling, inkl. UV-filter mv., Mek./EL","m³/h.",25,0]
["Skyllevandsbehandling, inkl. UV-filter mv., SRO","m³/h.",10,0]
["Nødstrømsanlæg på vandværk","kW",25,0]
["Elanlæg og SRO-anlæg - vandværk, Elanlæg","m³/h.",25,45,45]
["Elanlæg og SRO-anlæg - vandværk, SRO","m³/h.",10,45,45]
["Vandværk 14"]
["Beluftningsanlæg, iltningstrappe, Konstruktioner","m³/h ",50,0,null,"Møllebakken"]
["Beluftningsanlæg, iltningstrappe, Mek./EL","m³/h ",25,0]
["Beluftningsanlæg, ika-beluftning, Konstruktioner","m³/h ",50,0]
["Beluftningsanlæg, ika-beluftning, Mek./EL","m³/h ",25,0]
["Beluftningsanlæg, bundbeluftbning, Konstruktioner","m³/h ",50,0]
["Beluftningsanlæg, bundbeluftbning, Mek./EL","m³/h ",25,0]
["Beluftningsanlæg, rislebakke, Konstruktioner","m³/h ",50,0]
["Beluftningsanlæg, rislebakke, Mek./EL","m³/h ",25,0]
["Beluftningsanlæg, kompressorbeluftning","m³/h ",25,0]
["Beluftningsanlæg, ren ilt","m³/h ",25,0]
["Behandlingsanlæg, kalk anlæg","m³/h ",25,0]
["Behandlingsanlæg, luddosering","m³/h ",25,0]
["Filteranlæg, åbne filtre, enkelt filtrering, Konstruktioner","m³/h ",50,0]
["Filteranlæg, åbne filtre, enkelt filtrering, Mek./EL","m³/h ",25,0]
["Filteranlæg, åbne filtre, dobbelt filtrering, Konstruktioner","m³/h ",50,0]
["Filteranlæg, åbne filtre, dobbelt filtrering, Mek./EL","m³/h ",25,0]
["Filteranlæg, trykfiltre, enkelt filtrering","m³/h ",25,0]
["Filteranlæg, trykfiltre, dobbelt filtrering","m³/h ",25,0]
["Rentvandsbeholder  insitu støbt","m³",50,0]
["Rentvandsbeholder  element","m³",50,0]
["Udpumpningsanlæg, rentvandspumper på vandværk","m³/h ",25,8,0]
["Udpumpningsanlæg, frekvensomformer","kW",25,5,0]
["Udpumpningsanlæg, Hydrofor","liter",25,0]
["Skyllevand-/slamhåndteringsanlæg - lukkede betonbeholdere","m³",50,0]
["Skyllevand-/slamhåndteringsanl. - åbne med faste sider/bund","m³",50,0]
["Skyllevand-/slamhåndteringsanlæg - jordbassiner","m³",50,0]
["Skyllevandsbehandling, inkl. UV-filter mv., Mek./EL","m³/h.",25,0]
["Skyllevandsbehandling, inkl. UV-filter mv., SRO","m³/h.",10,0]
["Nødstrømsanlæg på vandværk","kW",25,0]
["Elanlæg og SRO-anlæg - vandværk, Elanlæg","m³/h.",25,8,0]
["Elanlæg og SRO-anlæg - vandværk, SRO","m³/h.",10,8,0]
["Vandværk 15"]
["Beluftningsanlæg, iltningstrappe, Konstruktioner","m³/h ",50,0,null,"Vokslev"]
["Beluftningsanlæg, iltningstrappe, Mek./EL","m³/h ",25,0]
["Beluftningsanlæg, ika-beluftning, Konstruktioner","m³/h ",50,0]
["Beluftningsanlæg, ika-beluftning, Mek./EL","m³/h ",25,0]
["Beluftningsanlæg, bundbeluftbning, Konstruktioner","m³/h ",50,0]
["Beluftningsanlæg, bundbeluftbning, Mek./EL","m³/h ",25,0]
["Beluftningsanlæg, rislebakke, Konstruktioner","m³/h ",50,0]
["Beluftningsanlæg, rislebakke, Mek./EL","m³/h ",25,0]
["Beluftningsanlæg, kompressorbeluftning","m³/h ",25,0]
["Beluftningsanlæg, ren ilt","m³/h ",25,0]
["Behandlingsanlæg, kalk anlæg","m³/h ",25,0]
["Behandlingsanlæg, luddosering","m³/h ",25,0]
["Filteranlæg, åbne filtre, enkelt filtrering, Konstruktioner","m³/h ",50,0]
["Filteranlæg, åbne filtre, enkelt filtrering, Mek./EL","m³/h ",25,0]
["Filteranlæg, åbne filtre, dobbelt filtrering, Konstruktioner","m³/h ",50,0]
["Filteranlæg, åbne filtre, dobbelt filtrering, Mek./EL","m³/h ",25,0]
["Filteranlæg, trykfiltre, enkelt filtrering","m³/h ",25,0]
["Filteranlæg, trykfiltre, dobbelt filtrering","m³/h ",25,0]
["Rentvandsbeholder  insitu støbt","m³",50,0]
["Rentvandsbeholder  element","m³",50,0]
["Udpumpningsanlæg, rentvandspumper på vandværk","m³/h ",25,15,15]
["Udpumpningsanlæg, frekvensomformer","kW",25,3,3]
["Udpumpningsanlæg, Hydrofor","liter",25,0]
["Skyllevand-/slamhåndteringsanlæg - lukkede betonbeholdere","m³",50,0]
["Skyllevand-/slamhåndteringsanl. - åbne med faste sider/bund","m³",50,0]
["Skyllevand-/slamhåndteringsanlæg - jordbassiner","m³",50,0]
["Skyllevandsbehandling, inkl. UV-filter mv., Mek./EL","m³/h.",25,0]
["Skyllevandsbehandling, inkl. UV-filter mv., SRO","m³/h.",10,0]
["Nødstrømsanlæg på vandværk","kW",25,0]
["Elanlæg og SRO-anlæg - vandværk, Elanlæg","m³/h.",25,15,15]
["Elanlæg og SRO-anlæg - vandværk, SRO","m³/h.",10,15,15]
["Vandværk 16"]
["Beluftningsanlæg, iltningstrappe, Konstruktioner","m³/h ",50,0,null,"Skalhuse"]
["Beluftningsanlæg, iltningstrappe, Mek./EL","m³/h ",25,0]
["Beluftningsanlæg, ika-beluftning, Konstruktioner","m³/h ",50,0]
["Beluftningsanlæg, ika-beluftning, Mek./EL","m³/h ",25,0]
["Beluftningsanlæg, bundbeluftbning, Konstruktioner","m³/h ",50,0]
["Beluftningsanlæg, bundbeluftbning, Mek./EL","m³/h ",25,0]
["Beluftningsanlæg, rislebakke, Konstruktioner","m³/h ",50,0]
["Beluftningsanlæg, rislebakke, Mek./EL","m³/h ",25,0]
["Beluftningsanlæg, kompressorbeluftning","m³/h ",25,0]
["Beluftningsanlæg, ren ilt","m³/h ",25,0]
["Behandlingsanlæg, kalk anlæg","m³/h ",25,0]
["Behandlingsanlæg, luddosering","m³/h ",25,0]
["Filteranlæg, åbne filtre, enkelt filtrering, Konstruktioner","m³/h ",50,0]
["Filteranlæg, åbne filtre, enkelt filtrering, Mek./EL","m³/h ",25,0]
["Filteranlæg, åbne filtre, dobbelt filtrering, Konstruktioner","m³/h ",50,0]
["Filteranlæg, åbne filtre, dobbelt filtrering, Mek./EL","m³/h ",25,0]
["Filteranlæg, trykfiltre, enkelt filtrering","m³/h ",25,0]
["Filteranlæg, trykfiltre, dobbelt filtrering","m³/h ",25,0]
["Rentvandsbeholder  insitu støbt","m³",50,0]
["Rentvandsbeholder  element","m³",50,0]
["Udpumpningsanlæg, rentvandspumper på vandværk","m³/h ",25,8,0]
["Udpumpningsanlæg, frekvensomformer","kW",25,3,0]
["Udpumpningsanlæg, Hydrofor","liter",25,0]
["Skyllevand-/slamhåndteringsanlæg - lukkede betonbeholdere","m³",50,0]
["Skyllevand-/slamhåndteringsanl. - åbne med faste sider/bund","m³",50,0]
["Skyllevand-/slamhåndteringsanlæg - jordbassiner","m³",50,0]
["Skyllevandsbehandling, inkl. UV-filter mv., Mek./EL","m³/h.",25,0]
["Skyllevandsbehandling, inkl. UV-filter mv., SRO","m³/h.",10,0]
["Nødstrømsanlæg på vandværk","kW",25,0]
["Elanlæg og SRO-anlæg - vandværk, Elanlæg","m³/h.",25,8,0]
["Elanlæg og SRO-anlæg - vandværk, SRO","m³/h.",10,8,0]
["Vandværk 17"]
["Beluftningsanlæg, iltningstrappe, Konstruktioner","m³/h ",50,0,null,"DR1+2"]
["Beluftningsanlæg, iltningstrappe, Mek./EL","m³/h ",25,0]
["Beluftningsanlæg, ika-beluftning, Konstruktioner","m³/h ",50,0]
["Beluftningsanlæg, ika-beluftning, Mek./EL","m³/h ",25,0]
["Beluftningsanlæg, bundbeluftbning, Konstruktioner","m³/h ",50,200,200]
["Beluftningsanlæg, bundbeluftbning, Mek./EL","m³/h ",25,0]
["Beluftningsanlæg, rislebakke, Konstruktioner","m³/h ",50,0]
["Beluftningsanlæg, rislebakke, Mek./EL","m³/h ",25,0]
["Beluftningsanlæg, kompressorbeluftning","m³/h ",25,0]
["Beluftningsanlæg, ren ilt","m³/h ",25,80,80]
["Behandlingsanlæg, kalk anlæg","m³/h ",25,0]
["Behandlingsanlæg, luddosering","m³/h ",25,0]
["Filteranlæg, åbne filtre, enkelt filtrering, Konstruktioner","m³/h ",50,0]
["Filteranlæg, åbne filtre, enkelt filtrering, Mek./EL","m³/h ",25,0]
["Filteranlæg, åbne filtre, dobbelt filtrering, Konstruktioner","m³/h ",50,0]
["Filteranlæg, åbne filtre, dobbelt filtrering, Mek./EL","m³/h ",25,0]
["Filteranlæg, trykfiltre, enkelt filtrering","m³/h ",25,0]
["Filteranlæg, trykfiltre, dobbelt filtrering","m³/h ",25,0]
["Rentvandsbeholder  insitu støbt","m³",50,300,300]
["Rentvandsbeholder  element","m³",50,0]
["Udpumpningsanlæg, rentvandspumper på vandværk","m³/h ",25,300,300]
["Udpumpningsanlæg, frekvensomformer","kW",25,111,111]
["Udpumpningsanlæg, Hydrofor","liter",25,0]
["Skyllevand-/slamhåndteringsanlæg - lukkede betonbeholdere","m³",50,0]
["Skyllevand-/slamhåndteringsanl. - åbne med faste sider/bund","m³",50,0]
["Skyllevand-/slamhåndteringsanlæg - jordbassiner","m³",50,0]
["Skyllevandsbehandling, inkl. UV-filter mv., Mek./EL","m³/h.",25,0]
["Skyllevandsbehandling, inkl. UV-filter mv., SRO","m³/h.",10,0]
["Nødstrømsanlæg på vandværk","kW",25,0]
["Elanlæg og SRO-anlæg - vandværk, Elanlæg","m³/h.",25,300,300]
["Elanlæg og SRO-anlæg - vandværk, SRO","m³/h.",10,300,300]
["Vandværk 18"]
["Beluftningsanlæg, iltningstrappe, Konstruktioner","m³/h ",50,0,null,"Engkilden"]
["Beluftningsanlæg, iltningstrappe, Mek./EL","m³/h ",25,0]
["Beluftningsanlæg, ika-beluftning, Konstruktioner","m³/h ",50,0]
["Beluftningsanlæg, ika-beluftning, Mek./EL","m³/h ",25,0]
["Beluftningsanlæg, bundbeluftbning, Konstruktioner","m³/h ",50,0]
["Beluftningsanlæg, bundbeluftbning, Mek./EL","m³/h ",25,0]
["Beluftningsanlæg, rislebakke, Konstruktioner","m³/h ",50,0]
["Beluftningsanlæg, rislebakke, Mek./EL","m³/h ",25,0]
["Beluftningsanlæg, kompressorbeluftning","m³/h ",25,0]
["Beluftningsanlæg, ren ilt","m³/h ",25,0]
["Behandlingsanlæg, kalk anlæg","m³/h ",25,0]
["Behandlingsanlæg, luddosering","m³/h ",25,0]
["Filteranlæg, åbne filtre, enkelt filtrering, Konstruktioner","m³/h ",50,0]
["Filteranlæg, åbne filtre, enkelt filtrering, Mek./EL","m³/h ",25,0]
["Filteranlæg, åbne filtre, dobbelt filtrering, Konstruktioner","m³/h ",50,0]
["Filteranlæg, åbne filtre, dobbelt filtrering, Mek./EL","m³/h ",25,0]
["Filteranlæg, trykfiltre, enkelt filtrering","m³/h ",25,0]
["Filteranlæg, trykfiltre, dobbelt filtrering","m³/h ",25,0]
["Rentvandsbeholder  insitu støbt","m³",50,400,400]
["Rentvandsbeholder  element","m³",50,0]
["Udpumpningsanlæg, rentvandspumper på vandværk","m³/h ",25,225,225]
["Udpumpningsanlæg, frekvensomformer","kW",25,75,75]
["Udpumpningsanlæg, Hydrofor","liter",25,0]
["Skyllevand-/slamhåndteringsanlæg - lukkede betonbeholdere","m³",50,0]
["Skyllevand-/slamhåndteringsanl. - åbne med faste sider/bund","m³",50,0]
["Skyllevand-/slamhåndteringsanlæg - jordbassiner","m³",50,0]
["Skyllevandsbehandling, inkl. UV-filter mv., Mek./EL","m³/h.",25,0]
["Skyllevandsbehandling, inkl. UV-filter mv., SRO","m³/h.",10,0]
["Nødstrømsanlæg på vandværk","kW",25,350,350]
["Elanlæg og SRO-anlæg - vandværk, Elanlæg","m³/h.",25,225,225]
["Elanlæg og SRO-anlæg - vandværk, SRO","m³/h.",10,225,225]
["Vandværk 19"]
["Beluftningsanlæg, iltningstrappe, Konstruktioner","m³/h ",50,0,null,"Ferslev K"]
["Beluftningsanlæg, iltningstrappe, Mek./EL","m³/h ",25,0]
["Beluftningsanlæg, ika-beluftning, Konstruktioner","m³/h ",50,0]
["Beluftningsanlæg, ika-beluftning, Mek./EL","m³/h ",25,0]
["Beluftningsanlæg, bundbeluftbning, Konstruktioner","m³/h ",50,0]
["Beluftningsanlæg, bundbeluftbning, Mek./EL","m³/h ",25,0]
["Beluftningsanlæg, rislebakke, Konstruktioner","m³/h ",50,0]
["Beluftningsanlæg, rislebakke, Mek./EL","m³/h ",25,0]
["Beluftningsanlæg, kompressorbeluftning","m³/h ",25,0]
["Beluftningsanlæg, ren ilt","m³/h ",25,0]
["Behandlingsanlæg, kalk anlæg","m³/h ",25,0]
["Behandlingsanlæg, luddosering","m³/h ",25,0]
["Filteranlæg, åbne filtre, enkelt filtrering, Konstruktioner","m³/h ",50,0]
["Filteranlæg, åbne filtre, enkelt filtrering, Mek./EL","m³/h ",25,0]
["Filteranlæg, åbne filtre, dobbelt filtrering, Konstruktioner","m³/h ",50,0]
["Filteranlæg, åbne filtre, dobbelt filtrering, Mek./EL","m³/h ",25,0]
["Filteranlæg, trykfiltre, enkelt filtrering","m³/h ",25,0]
["Filteranlæg, trykfiltre, dobbelt filtrering","m³/h ",25,0]
["Rentvandsbeholder  insitu støbt","m³",50,0]
["Rentvandsbeholder  element","m³",50,0]
["Udpumpningsanlæg, rentvandspumper på vandværk","m³/h ",25,60,60]
["Udpumpningsanlæg, frekvensomformer","kW",25,8,8]
["Udpumpningsanlæg, Hydrofor","liter",25,0]
["Skyllevand-/slamhåndteringsanlæg - lukkede betonbeholdere","m³",50,0]
["Skyllevand-/slamhåndteringsanl. - åbne med faste sider/bund","m³",50,0]
["Skyllevand-/slamhåndteringsanlæg - jordbassiner","m³",50,0]
["Skyllevandsbehandling, inkl. UV-filter mv., Mek./EL","m³/h.",25,0]
["Skyllevandsbehandling, inkl. UV-filter mv., SRO","m³/h.",10,0]
["Nødstrømsanlæg på vandværk","kW",25,0]
["Elanlæg og SRO-anlæg - vandværk, Elanlæg","m³/h.",25,60,60]
["Elanlæg og SRO-anlæg - vandværk, SRO","m³/h.",10,60,60]
["Vandværk 20"]
["Beluftningsanlæg, iltningstrappe, Konstruktioner","m³/h ",50,0,null,"Hvorup"]
["Beluftningsanlæg, iltningstrappe, Mek./EL","m³/h ",25,0]
["Beluftningsanlæg, ika-beluftning, Konstruktioner","m³/h ",50,0]
["Beluftningsanlæg, ika-beluftning, Mek./EL","m³/h ",25,0]
["Beluftningsanlæg, bundbeluftbning, Konstruktioner","m³/h ",50,0]
["Beluftningsanlæg, bundbeluftbning, Mek./EL","m³/h ",25,0]
["Beluftningsanlæg, rislebakke, Konstruktioner","m³/h ",50,0]
["Beluftningsanlæg, rislebakke, Mek./EL","m³/h ",25,0]
["Beluftningsanlæg, kompressorbeluftning","m³/h ",25,0]
["Beluftningsanlæg, ren ilt","m³/h ",25,80,80]
["Behandlingsanlæg, kalk anlæg","m³/h ",25,0]
["Behandlingsanlæg, luddosering","m³/h ",25,0]
["Filteranlæg, åbne filtre, enkelt filtrering, Konstruktioner","m³/h ",50,0]
["Filteranlæg, åbne filtre, enkelt filtrering, Mek./EL","m³/h ",25,0]
["Filteranlæg, åbne filtre, dobbelt filtrering, Konstruktioner","m³/h ",50,0]
["Filteranlæg, åbne filtre, dobbelt filtrering, Mek./EL","m³/h ",25,0]
["Filteranlæg, trykfiltre, enkelt filtrering","m³/h ",25,0]
["Filteranlæg, trykfiltre, dobbelt filtrering","m³/h ",25,0]
["Rentvandsbeholder  insitu støbt","m³",50,0]
["Rentvandsbeholder  element","m³",50,0]
["Udpumpningsanlæg, rentvandspumper på vandværk","m³/h ",25,0]
["Udpumpningsanlæg, frekvensomformer","kW",25,35,35]
["Udpumpningsanlæg, Hydrofor","liter",25,0]
["Skyllevand-/slamhåndteringsanlæg - lukkede betonbeholdere","m³",50,0]
["Skyllevand-/slamhåndteringsanl. - åbne med faste sider/bund","m³",50,0]
["Skyllevand-/slamhåndteringsanlæg - jordbassiner","m³",50,0]
["Skyllevandsbehandling, inkl. UV-filter mv., Mek./EL","m³/h.",25,0]
["Skyllevandsbehandling, inkl. UV-filter mv., SRO","m³/h.",10,0]
["Nødstrømsanlæg på vandværk","kW",25,0]
["Elanlæg og SRO-anlæg - vandværk, Elanlæg","m³/h.",25,0,35,"Fejl i 2014"]
["Elanlæg og SRO-anlæg - vandværk, SRO","m³/h.",10,0,35,"Fejl i 2014"]
["Vandværk 21"]
["Beluftningsanlæg, iltningstrappe, Konstruktioner","m³/h ",50,0,null,"Vissegård"]
["Beluftningsanlæg, iltningstrappe, Mek./EL","m³/h ",25,0]
["Beluftningsanlæg, ika-beluftning, Konstruktioner","m³/h ",50,0]
["Beluftningsanlæg, ika-beluftning, Mek./EL","m³/h ",25,0]
["Beluftningsanlæg, bundbeluftbning, Konstruktioner","m³/h ",50,0]
["Beluftningsanlæg, bundbeluftbning, Mek./EL","m³/h ",25,0]
["Beluftningsanlæg, rislebakke, Konstruktioner","m³/h ",50,0]
["Beluftningsanlæg, rislebakke, Mek./EL","m³/h ",25,0]
["Beluftningsanlæg, kompressorbeluftning","m³/h ",25,0]
["Beluftningsanlæg, ren ilt","m³/h ",25,0]
["Behandlingsanlæg, kalk anlæg","m³/h ",25,0]
["Behandlingsanlæg, luddosering","m³/h ",25,0]
["Filteranlæg, åbne filtre, enkelt filtrering, Konstruktioner","m³/h ",50,0]
["Filteranlæg, åbne filtre, enkelt filtrering, Mek./EL","m³/h ",25,0]
["Filteranlæg, åbne filtre, dobbelt filtrering, Konstruktioner","m³/h ",50,0]
["Filteranlæg, åbne filtre, dobbelt filtrering, Mek./EL","m³/h ",25,0]
["Filteranlæg, trykfiltre, enkelt filtrering","m³/h ",25,0]
["Filteranlæg, trykfiltre, dobbelt filtrering","m³/h ",25,0]
["Rentvandsbeholder  insitu støbt","m³",50,0]
["Rentvandsbeholder  element","m³",50,0]
["Udpumpningsanlæg, rentvandspumper på vandværk","m³/h ",25,0]
["Udpumpningsanlæg, frekvensomformer","kW",25,0]
["Udpumpningsanlæg, Hydrofor","liter",25,0]
["Skyllevand-/slamhåndteringsanlæg - lukkede betonbeholdere","m³",50,0]
["Skyllevand-/slamhåndteringsanl. - åbne med faste sider/bund","m³",50,0]
["Skyllevand-/slamhåndteringsanlæg - jordbassiner","m³",50,0]
["Skyllevandsbehandling, inkl. UV-filter mv., Mek./EL","m³/h.",25,0]
["Skyllevandsbehandling, inkl. UV-filter mv., SRO","m³/h.",10,130,130]
["Nødstrømsanlæg på vandværk","kW",25,0]
["Elanlæg og SRO-anlæg - vandværk, Elanlæg","m³/h.",25,130,130]
["Elanlæg og SRO-anlæg - vandværk, SRO","m³/h.",10,130,130]
["Vandværk 22"]
["Beluftningsanlæg, iltningstrappe, Konstruktioner","m³/h ",50,0,null,"Solbakken - nedlagt"]
["Beluftningsanlæg, iltningstrappe, Mek./EL","m³/h ",25,0]
["Beluftningsanlæg, ika-beluftning, Konstruktioner","m³/h ",50,0]
["Beluftningsanlæg, ika-beluftning, Mek./EL","m³/h ",25,0]
["Beluftningsanlæg, bundbeluftbning, Konstruktioner","m³/h ",50,0]
["Beluftningsanlæg, bundbeluftbning, Mek./EL","m³/h ",25,0]
["Beluftningsanlæg, rislebakke, Konstruktioner","m³/h ",50,0]
["Beluftningsanlæg, rislebakke, Mek./EL","m³/h ",25,0]
["Beluftningsanlæg, kompressorbeluftning","m³/h ",25,0]
["Beluftningsanlæg, ren ilt","m³/h ",25,0]
["Behandlingsanlæg, kalk anlæg","m³/h ",25,0]
["Behandlingsanlæg, luddosering","m³/h ",25,0]
["Filteranlæg, åbne filtre, enkelt filtrering, Konstruktioner","m³/h ",50,0]
["Filteranlæg, åbne filtre, enkelt filtrering, Mek./EL","m³/h ",25,0]
["Filteranlæg, åbne filtre, dobbelt filtrering, Konstruktioner","m³/h ",50,0]
["Filteranlæg, åbne filtre, dobbelt filtrering, Mek./EL","m³/h ",25,0]
["Filteranlæg, trykfiltre, enkelt filtrering","m³/h ",25,0]
["Filteranlæg, trykfiltre, dobbelt filtrering","m³/h ",25,0]
["Rentvandsbeholder  insitu støbt","m³",50,0]
["Rentvandsbeholder  element","m³",50,0]
["Udpumpningsanlæg, rentvandspumper på vandværk","m³/h ",25,65,0]
["Udpumpningsanlæg, frekvensomformer","kW",25,15,0]
["Udpumpningsanlæg, Hydrofor","liter",25,100,0]
["Skyllevand-/slamhåndteringsanlæg - lukkede betonbeholdere","m³",50,0]
["Skyllevand-/slamhåndteringsanl. - åbne med faste sider/bund","m³",50,0]
["Skyllevand-/slamhåndteringsanlæg - jordbassiner","m³",50,0]
["Skyllevandsbehandling, inkl. UV-filter mv., Mek./EL","m³/h.",25,0]
["Skyllevandsbehandling, inkl. UV-filter mv., SRO","m³/h.",10,0]
["Nødstrømsanlæg på vandværk","kW",25,0]
["Elanlæg og SRO-anlæg - vandværk, Elanlæg","m³/h.",25,65,0]
["Elanlæg og SRO-anlæg - vandværk, SRO","m³/h.",10,65,0]
["Vandværk 24"]
["Beluftningsanlæg, iltningstrappe, Konstruktioner","m³/h ",50,0,null,"Sebber - nedlagt"]
["Beluftningsanlæg, iltningstrappe, Mek./EL","m³/h ",25,0]
["Beluftningsanlæg, ika-beluftning, Konstruktioner","m³/h ",50,0]
["Beluftningsanlæg, ika-beluftning, Mek./EL","m³/h ",25,0]
["Beluftningsanlæg, bundbeluftbning, Konstruktioner","m³/h ",50,0]
["Beluftningsanlæg, bundbeluftbning, Mek./EL","m³/h ",25,0]
["Beluftningsanlæg, rislebakke, Konstruktioner","m³/h ",50,0]
["Beluftningsanlæg, rislebakke, Mek./EL","m³/h ",25,0]
["Beluftningsanlæg, kompressorbeluftning","m³/h ",25,8,0]
["Beluftningsanlæg, ren ilt","m³/h ",25,0]
["Behandlingsanlæg, kalk anlæg","m³/h ",25,0]
["Behandlingsanlæg, luddosering","m³/h ",25,0]
["Filteranlæg, åbne filtre, enkelt filtrering, Konstruktioner","m³/h ",50,0]
["Filteranlæg, åbne filtre, enkelt filtrering, Mek./EL","m³/h ",25,0]
["Filteranlæg, åbne filtre, dobbelt filtrering, Konstruktioner","m³/h ",50,0]
["Filteranlæg, åbne filtre, dobbelt filtrering, Mek./EL","m³/h ",25,0]
["Filteranlæg, trykfiltre, enkelt filtrering","m³/h ",25,8,0]
["Filteranlæg, trykfiltre, dobbelt filtrering","m³/h ",25,0,0]
["Rentvandsbeholder  insitu støbt","m³",50,0]
["Rentvandsbeholder  element","m³",50,0]
["Udpumpningsanlæg, rentvandspumper på vandværk","m³/h ",25,8,0]
["Udpumpningsanlæg, frekvensomformer","kW",25,5,0]
["Udpumpningsanlæg, Hydrofor","liter",25,0]
["Skyllevand-/slamhåndteringsanlæg - lukkede betonbeholdere","m³",50,2,0]
["Skyllevand-/slamhåndteringsanl. - åbne med faste sider/bund","m³",50,0]
["Skyllevand-/slamhåndteringsanlæg - jordbassiner","m³",50,0]
["Skyllevandsbehandling, inkl. UV-filter mv., Mek./EL","m³/h.",25,0]
["Skyllevandsbehandling, inkl. UV-filter mv., SRO","m³/h.",10,0]
["Nødstrømsanlæg på vandværk","kW",25,0]
["Elanlæg og SRO-anlæg - vandværk, Elanlæg","m³/h.",25,8,0]
["Elanlæg og SRO-anlæg - vandværk, SRO","m³/h.",10,8,0]
["Vandværk 25"]
["Beluftningsanlæg, iltningstrappe, Konstruktioner","m³/h ",50,0,null,"Ferslev T"]
["Beluftningsanlæg, iltningstrappe, Mek./EL","m³/h ",25,0]
["Beluftningsanlæg, ika-beluftning, Konstruktioner","m³/h ",50,0]
["Beluftningsanlæg, ika-beluftning, Mek./EL","m³/h ",25,0]
["Beluftningsanlæg, bundbeluftbning, Konstruktioner","m³/h ",50,0]
["Beluftningsanlæg, bundbeluftbning, Mek./EL","m³/h ",25,0]
["Beluftningsanlæg, rislebakke, Konstruktioner","m³/h ",50,0]
["Beluftningsanlæg, rislebakke, Mek./EL","m³/h ",25,0]
["Beluftningsanlæg, kompressorbeluftning","m³/h ",25,0]
["Beluftningsanlæg, ren ilt","m³/h ",25,0]
["Behandlingsanlæg, kalk anlæg","m³/h ",25,0]
["Behandlingsanlæg, luddosering","m³/h ",25,0]
["Filteranlæg, åbne filtre, enkelt filtrering, Konstruktioner","m³/h ",50,0]
["Filteranlæg, åbne filtre, enkelt filtrering, Mek./EL","m³/h ",25,0]
["Filteranlæg, åbne filtre, dobbelt filtrering, Konstruktioner","m³/h ",50,0]
["Filteranlæg, åbne filtre, dobbelt filtrering, Mek./EL","m³/h ",25,0]
["Filteranlæg, trykfiltre, enkelt filtrering","m³/h ",25,0]
["Filteranlæg, trykfiltre, dobbelt filtrering","m³/h ",25,0]
["Rentvandsbeholder  insitu støbt","m³",50,0]
["Rentvandsbeholder  element","m³",50,0]
["Udpumpningsanlæg, rentvandspumper på vandværk","m³/h ",25,8,8]
["Udpumpningsanlæg, frekvensomformer","kW",25,3,3]
["Udpumpningsanlæg, Hydrofor","liter",25,0]
["Skyllevand-/slamhåndteringsanlæg - lukkede betonbeholdere","m³",50,0]
["Skyllevand-/slamhåndteringsanl. - åbne med faste sider/bund","m³",50,0]
["Skyllevand-/slamhåndteringsanlæg - jordbassiner","m³",50,0]
["Skyllevandsbehandling, inkl. UV-filter mv., Mek./EL","m³/h.",25,0]
["Skyllevandsbehandling, inkl. UV-filter mv., SRO","m³/h.",10,0]
["Nødstrømsanlæg på vandværk","kW",25,0]
["Elanlæg og SRO-anlæg - vandværk, Elanlæg","m³/h.",25,8,8]
["Elanlæg og SRO-anlæg - vandværk, SRO","m³/h.",10,8,8]
["Vandværk 26"]
["Beluftningsanlæg, iltningstrappe, Konstruktioner","m³/h ",50,0,null,"Flødal"]
["Beluftningsanlæg, iltningstrappe, Mek./EL","m³/h ",25,0]
["Beluftningsanlæg, ika-beluftning, Konstruktioner","m³/h ",50,0]
["Beluftningsanlæg, ika-beluftning, Mek./EL","m³/h ",25,0]
["Beluftningsanlæg, bundbeluftbning, Konstruktioner","m³/h ",50,0]
["Beluftningsanlæg, bundbeluftbning, Mek./EL","m³/h ",25,0]
["Beluftningsanlæg, rislebakke, Konstruktioner","m³/h ",50,0]
["Beluftningsanlæg, rislebakke, Mek./EL","m³/h ",25,0]
["Beluftningsanlæg, kompressorbeluftning","m³/h ",25,0]
["Beluftningsanlæg, ren ilt","m³/h ",25,0]
["Behandlingsanlæg, kalk anlæg","m³/h ",25,0]
["Behandlingsanlæg, luddosering","m³/h ",25,0]
["Filteranlæg, åbne filtre, enkelt filtrering, Konstruktioner","m³/h ",50,0]
["Filteranlæg, åbne filtre, enkelt filtrering, Mek./EL","m³/h ",25,0]
["Filteranlæg, åbne filtre, dobbelt filtrering, Konstruktioner","m³/h ",50,0]
["Filteranlæg, åbne filtre, dobbelt filtrering, Mek./EL","m³/h ",25,0]
["Filteranlæg, trykfiltre, enkelt filtrering","m³/h ",25,0]
["Filteranlæg, trykfiltre, dobbelt filtrering","m³/h ",25,0]
["Rentvandsbeholder  insitu støbt","m³",50,0]
["Rentvandsbeholder  element","m³",50,0]
["Udpumpningsanlæg, rentvandspumper på vandværk","m³/h ",25,115,115]
["Udpumpningsanlæg, frekvensomformer","kW",25,55,55]
["Udpumpningsanlæg, Hydrofor","liter",25,0]
["Skyllevand-/slamhåndteringsanlæg - lukkede betonbeholdere","m³",50,0]
["Skyllevand-/slamhåndteringsanl. - åbne med faste sider/bund","m³",50,0]
["Skyllevand-/slamhåndteringsanlæg - jordbassiner","m³",50,0]
["Skyllevandsbehandling, inkl. UV-filter mv., Mek./EL","m³/h.",25,0]
["Skyllevandsbehandling, inkl. UV-filter mv., SRO","m³/h.",10,0]
["Nødstrømsanlæg på vandværk","kW",25,0]
["Elanlæg og SRO-anlæg - vandværk, Elanlæg","m³/h.",25,115,115]
["Elanlæg og SRO-anlæg - vandværk, SRO","m³/h.",10,115,115]
["Vandværk 27"]
["Beluftningsanlæg, iltningstrappe, Konstruktioner","m³/h ",50,0,null,"Tranholm"]
["Beluftningsanlæg, iltningstrappe, Mek./EL","m³/h ",25,0]
["Beluftningsanlæg, ika-beluftning, Konstruktioner","m³/h ",50,0]
["Beluftningsanlæg, ika-beluftning, Mek./EL","m³/h ",25,0]
["Beluftningsanlæg, bundbeluftbning, Konstruktioner","m³/h ",50,0]
["Beluftningsanlæg, bundbeluftbning, Mek./EL","m³/h ",25,0]
["Beluftningsanlæg, rislebakke, Konstruktioner","m³/h ",50,0]
["Beluftningsanlæg, rislebakke, Mek./EL","m³/h ",25,0]
["Beluftningsanlæg, kompressorbeluftning","m³/h ",25,0]
["Beluftningsanlæg, ren ilt","m³/h ",25,0]
["Behandlingsanlæg, kalk anlæg","m³/h ",25,0]
["Behandlingsanlæg, luddosering","m³/h ",25,0]
["Filteranlæg, åbne filtre, enkelt filtrering, Konstruktioner","m³/h ",50,0]
["Filteranlæg, åbne filtre, enkelt filtrering, Mek./EL","m³/h ",25,0]
["Filteranlæg, åbne filtre, dobbelt filtrering, Konstruktioner","m³/h ",50,0]
["Filteranlæg, åbne filtre, dobbelt filtrering, Mek./EL","m³/h ",25,0]
["Filteranlæg, trykfiltre, enkelt filtrering","m³/h ",25,0]
["Filteranlæg, trykfiltre, dobbelt filtrering","m³/h ",25,0]
["Rentvandsbeholder  insitu støbt","m³",50,0]
["Rentvandsbeholder  element","m³",50,0]
["Udpumpningsanlæg, rentvandspumper på vandværk","m³/h ",25,45,45]
["Udpumpningsanlæg, frekvensomformer","kW",25,0]
["Udpumpningsanlæg, Hydrofor","liter",25,0]
["Skyllevand-/slamhåndteringsanlæg - lukkede betonbeholdere","m³",50,0]
["Skyllevand-/slamhåndteringsanl. - åbne med faste sider/bund","m³",50,0]
["Skyllevand-/slamhåndteringsanlæg - jordbassiner","m³",50,0]
["Skyllevandsbehandling, inkl. UV-filter mv., Mek./EL","m³/h.",25,0]
["Skyllevandsbehandling, inkl. UV-filter mv., SRO","m³/h.",10,0]
["Nødstrømsanlæg på vandværk","kW",25,0]
["Elanlæg og SRO-anlæg - vandværk, Elanlæg","m³/h.",25,45,45]
["Elanlæg og SRO-anlæg - vandværk, SRO","m³/h.",10,0]
["Vandværk 28"]
["Beluftningsanlæg, iltningstrappe, Konstruktioner","m³/h ",50,90,90,"Nibe"]
["Beluftningsanlæg, iltningstrappe, Mek./EL","m³/h ",25,90,90]
["Beluftningsanlæg, ika-beluftning, Konstruktioner","m³/h ",50,0]
["Beluftningsanlæg, ika-beluftning, Mek./EL","m³/h ",25,0]
["Beluftningsanlæg, bundbeluftbning, Konstruktioner","m³/h ",50,0]
["Beluftningsanlæg, bundbeluftbning, Mek./EL","m³/h ",25,0]
["Beluftningsanlæg, rislebakke, Konstruktioner","m³/h ",50,0]
["Beluftningsanlæg, rislebakke, Mek./EL","m³/h ",25,0]
["Beluftningsanlæg, kompressorbeluftning","m³/h ",25,0]
["Beluftningsanlæg, ren ilt","m³/h ",25,0]
["Behandlingsanlæg, kalk anlæg","m³/h ",25,0]
["Behandlingsanlæg, luddosering","m³/h ",25,0]
["Filteranlæg, åbne filtre, enkelt filtrering, Konstruktioner","m³/h ",50,0]
["Filteranlæg, åbne filtre, enkelt filtrering, Mek./EL","m³/h ",25,0]
["Filteranlæg, åbne filtre, dobbelt filtrering, Konstruktioner","m³/h ",50,0]
["Filteranlæg, åbne filtre, dobbelt filtrering, Mek./EL","m³/h ",25,0]
["Filteranlæg, trykfiltre, enkelt filtrering","m³/h ",25,0]
["Filteranlæg, trykfiltre, dobbelt filtrering","m³/h ",25,0]
["Rentvandsbeholder  insitu støbt","m³",50,1000,1000]
["Rentvandsbeholder  element","m³",50,0]
["Udpumpningsanlæg, rentvandspumper på vandværk","m³/h ",25,90,90]
["Udpumpningsanlæg, frekvensomformer","kW",25,66,66]
["Udpumpningsanlæg, Hydrofor","liter",25,0]
["Skyllevand-/slamhåndteringsanlæg - lukkede betonbeholdere","m³",50,0]
["Skyllevand-/slamhåndteringsanl. - åbne med faste sider/bund","m³",50,0]
["Skyllevand-/slamhåndteringsanlæg - jordbassiner","m³",50,200,200]
["Skyllevandsbehandling, inkl. UV-filter mv., Mek./EL","m³/h.",25,0]
["Skyllevandsbehandling, inkl. UV-filter mv., SRO","m³/h.",10,0]
["Nødstrømsanlæg på vandværk","kW",25,180,180]
["Elanlæg og SRO-anlæg - vandværk, Elanlæg","m³/h.",25,90,90]
["Elanlæg og SRO-anlæg - vandværk, SRO","m³/h.",10,90,90]
["Vandværk 29"]
["Beluftningsanlæg, iltningstrappe, Konstruktioner","m³/h ",50,0]
["Beluftningsanlæg, iltningstrappe, Mek./EL","m³/h ",25,0]
["Beluftningsanlæg, ika-beluftning, Konstruktioner","m³/h ",50,0]
["Beluftningsanlæg, ika-beluftning, Mek./EL","m³/h ",25,0]
["Beluftningsanlæg, bundbeluftbning, Konstruktioner","m³/h ",50,0]
["Beluftningsanlæg, bundbeluftbning, Mek./EL","m³/h ",25,0]
["Beluftningsanlæg, rislebakke, Konstruktioner","m³/h ",50,0]
["Beluftningsanlæg, rislebakke, Mek./EL","m³/h ",25,0]
["Beluftningsanlæg, kompressorbeluftning","m³/h ",25,0]
["Beluftningsanlæg, ren ilt","m³/h ",25,0]
["Behandlingsanlæg, kalk anlæg","m³/h ",25,0]
["Behandlingsanlæg, luddosering","m³/h ",25,0]
["Filteranlæg, åbne filtre, enkelt filtrering, Konstruktioner","m³/h ",50,0]
["Filteranlæg, åbne filtre, enkelt filtrering, Mek./EL","m³/h ",25,0]
["Filteranlæg, åbne filtre, dobbelt filtrering, Konstruktioner","m³/h ",50,0]
["Filteranlæg, åbne filtre, dobbelt filtrering, Mek./EL","m³/h ",25,0]
["Filteranlæg, trykfiltre, enkelt filtrering","m³/h ",25,0]
["Filteranlæg, trykfiltre, dobbelt filtrering","m³/h ",25,0]
["Rentvandsbeholder  insitu støbt","m³",50,0]
["Rentvandsbeholder  element","m³",50,0]
["Udpumpningsanlæg, rentvandspumper på vandværk","m³/h ",25,0]
["Udpumpningsanlæg, frekvensomformer","kW",25,0]
["Udpumpningsanlæg, Hydrofor","liter",25,0]
["Skyllevand-/slamhåndteringsanlæg - lukkede betonbeholdere","m³",50,0]
["Skyllevand-/slamhåndteringsanl. - åbne med faste sider/bund","m³",50,0]
["Skyllevand-/slamhåndteringsanlæg - jordbassiner","m³",50,0]
["Skyllevandsbehandling, inkl. UV-filter mv., Mek./EL","m³/h.",25,0]
["Skyllevandsbehandling, inkl. UV-filter mv., SRO","m³/h.",10,0]
["Nødstrømsanlæg på vandværk","kW",25,0]
["Elanlæg og SRO-anlæg - vandværk, Elanlæg","m³/h.",25,0]
["Elanlæg og SRO-anlæg - vandværk, SRO","m³/h.",10,0]
["Vandværk 30"]
["Beluftningsanlæg, iltningstrappe, Konstruktioner","m³/h ",50,0]
["Beluftningsanlæg, iltningstrappe, Mek./EL","m³/h ",25,0]
["Beluftningsanlæg, ika-beluftning, Konstruktioner","m³/h ",50,0]
["Beluftningsanlæg, ika-beluftning, Mek./EL","m³/h ",25,0]
["Beluftningsanlæg, bundbeluftbning, Konstruktioner","m³/h ",50,0]
["Beluftningsanlæg, bundbeluftbning, Mek./EL","m³/h ",25,0]
["Beluftningsanlæg, rislebakke, Konstruktioner","m³/h ",50,0]
["Beluftningsanlæg, rislebakke, Mek./EL","m³/h ",25,0]
["Beluftningsanlæg, kompressorbeluftning","m³/h ",25,0]
["Beluftningsanlæg, ren ilt","m³/h ",25,0]
["Behandlingsanlæg, kalk anlæg","m³/h ",25,0]
["Behandlingsanlæg, luddosering","m³/h ",25,0]
["Filteranlæg, åbne filtre, enkelt filtrering, Konstruktioner","m³/h ",50,0]
["Filteranlæg, åbne filtre, enkelt filtrering, Mek./EL","m³/h ",25,0]
["Filteranlæg, åbne filtre, dobbelt filtrering, Konstruktioner","m³/h ",50,0]
["Filteranlæg, åbne filtre, dobbelt filtrering, Mek./EL","m³/h ",25,0]
["Filteranlæg, trykfiltre, enkelt filtrering","m³/h ",25,0]
["Filteranlæg, trykfiltre, dobbelt filtrering","m³/h ",25,0]
["Rentvandsbeholder  insitu støbt","m³",50,0]
["Rentvandsbeholder  element","m³",50,0]
["Udpumpningsanlæg, rentvandspumper på vandværk","m³/h ",25,0]
["Udpumpningsanlæg, frekvensomformer","kW",25,0]
["Udpumpningsanlæg, Hydrofor","liter",25,0]
["Skyllevand-/slamhåndteringsanlæg - lukkede betonbeholdere","m³",50,0]
["Skyllevand-/slamhåndteringsanl. - åbne med faste sider/bund","m³",50,0]
["Skyllevand-/slamhåndteringsanlæg - jordbassiner","m³",50,0]
["Skyllevandsbehandling, inkl. UV-filter mv., Mek./EL","m³/h.",25,0]
["Skyllevandsbehandling, inkl. UV-filter mv., SRO","m³/h.",10,0]
["Nødstrømsanlæg på vandværk","kW",25,0]
["Elanlæg og SRO-anlæg - vandværk, Elanlæg","m³/h.",25,0]
["Elanlæg og SRO-anlæg - vandværk, SRO","m³/h.",10,0]
["Bygninger"]
["Etageareal vandbehandlingsbygning","m²",75,{"$f":"2044+62+147","v":2253},2253]
["Etageareal kontor og mandskabsfaciliteter","m²",75,1718,1718]
["Værksted","m²",75,1138,1138]
["Lager","m²",75,246,246]
["Garage og rørlager","m²",75,{"$f":"263+40","v":303},303]
["Bygning for trykforøgere","m²",75,{"$f":"212+51-5+7.5","v":265.5},266]
["Laboratorium (bygning, inkl. inventar+udstyr), Konstruktioner","m²",75,0,0]
["Laboratorium (bygning, inkl. inventar+udstyr), Mek./EL","m²",10,0,0]
["Andre"]
["Sikring (terror, hærværk), Mek./EL","stk.",25,0]
["Sikring (terror, hærværk), SRO","stk.",10,0]
["Sikring, mindre avanceret (hegn, porte), Mek./EL","stk.",25,0]
["Sikring, mindre avanceret (hegn, porte), SRO","stk.",10,37,37]
["Sikring, avanceret (hegn, porte og overvågningssystemer), Mek./EL","stk.",25,0]
["Sikring, avanceret (hegn, porte og overvågningssystemer), SRO","stk.",10,3,3]

{"sheet":"Distributionsanlæg","index":1,"n_rows":313,"n_cols":6,"rows_kept":313,"cut":false,"hidden":false,"merged":[[0,5,1,5],[0,0,1,0],[0,1,1,1],[0,2,1,2],[0,3,1,3],[0,4,1,4]]}
["Distributionsanlæg","Enhed","Standard-levetid","Samlet mængde per 31/12-2014","Samlet mængde per 31/12-2015","Bemærk-ninger"]
[]
["Ledningsnet - Land"]
["Ledningsnet ≤ Ø50 mm","meter",75,{"$f":"18670.98-27.26","v":18643.72},20022.7]
["Ø 50mm < Ledningsnet ≤ Ø110 mm","meter",75,{"$f":"46717.98-34.4-1589.91-5975.12","v":39118.549999999996},45685.17]
["Ø110 mm < Ledningsnet ≤ Ø 250 mm","meter",75,{"$f":"27037.41-1200.33","v":25837.08},19560.09]
["Ø 250 mm < Ledningsnet ≤ Ø 500mm","meter",75,{"$f":"26556.61-1040.95-9551.8","v":15963.86},17745.59]
["Ledningsnet > Ø 500 mm","meter",75,0,0]
["Støbejernsledninger ≤ Ø50 mm","meter",100,27.26,9.6300000000000008]
["Støbejernsledninger Ø 50mm < Ledningsnet ≤ Ø110 mm","meter",100,34.4,34.4]
["Støbejernsledninger Ø110 mm < Ledningsnet ≤ Ø 250 mm","meter",100,1200.33,1200.33]
["Støbejernsledninger Ø 250 mm < Ledningsnet ≤ Ø 500mm","meter",100,1040.95,926.67]
["Støbejernsledninger Ledningsnet > Ø 500 mm","meter",100,0,0]
["Eternitledninger ≤ Ø50 mm","meter",75,0,0]
["Eternitledninger Ø 50mm < Ledningsnet ≤ Ø110 mm","meter",75,1589.91,1589.91]
["Eternitledninger Ø110 mm < Ledningsnet ≤ Ø 250 mm","meter",75,5975.12,5974.14]
["Eternitledninger Ø 250 mm < Ledningsnet ≤ Ø 500mm","meter",75,9551.7999999999993,8977.19]
["Eternitledninger Ledningsnet > Ø 500 mm","meter",75,340.82,136.41]
["Skelbrønd, Konstruktioner","stk.",50,0,0]
["Skelbrønd, Mek./EL","stk.",15,0,0]
["Inspektionsbrønd, Konstruktioner","stk.",50,0,0]
["Inspektionsbrønd, Mek./EL","stk.",15,0,0]
["Stik på ledningsnet, Konstruktioner","stk.",75,0,0]
["Stik på ledningsnet, Mek./EL","stk.",75,0,0]
["Ledningsnet - By"]
["Ledningsnet ≤ Ø50 mm","meter",75,{"$f":"92866.37-34.46-2878.65","v":89953.26},90001.82]
["Ø 50mm < Ledningsnet ≤ Ø110 mm","meter",75,{"$f":"229952.87-6393.26-16192.83","v":207366.78},210695.05]
["Ø110 mm < Ledningsnet ≤ Ø 250 mm","meter",75,{"$f":"212908.17-94240.12-28749","v":89919.050000000017},89646.9]
["Ø 250 mm < Ledningsnet ≤ Ø 500mm","meter",75,{"$f":"57169.2-40142.34-3868.76","v":13158.1},15011.32]
["Ledningsnet > Ø 500 mm","meter",75,0,0]
["Støbejernsledninger ≤ Ø50 mm","meter",100,{"$f":"34.46+2878.65","v":2913.11},2844.97]
["Støbejernsledninger Ø 50mm < Ledningsnet ≤ Ø110 mm","meter",100,16192.83,14517.18]
["Støbejernsledninger Ø110 mm < Ledningsnet ≤ Ø 250 mm","meter",100,28749,28466.02]
["Støbejernsledninger Ø 250 mm < Ledningsnet ≤ Ø 500mm","meter",100,3868.76,3857.89]
["Støbejernsledninger Ledningsnet > Ø 500 mm","meter",100,0,0]
["Eternitledninger ≤ Ø50 mm","meter",75,0,0]
["Eternitledninger Ø 50mm < Ledningsnet ≤ Ø110 mm","meter",75,6393.26,6269.48]
["Eternitledninger Ø110 mm < Ledningsnet ≤ Ø 250 mm","meter",75,94240.12,94084.36]
["Eternitledninger Ø 250 mm < Ledningsnet ≤ Ø 500mm","meter",75,40142.339999999997,39451.94]
["Eternitledninger Ledningsnet > Ø 500 mm","meter",75,1567.29,1073.68]
["Skelbrønd, Konstruktioner","stk.",50,0,0]
["Skelbrønd, Mek./EL","stk.",15,0,0]
["Inspektionsbrønd, Konstruktioner","stk.",50,0,0]
["Inspektionsbrønd, Mek./EL","stk.",15,0,0]
["Stik på ledningsnet, Konstruktioner","stk.",75,0,0]
["Stik på ledningsnet, Mek./EL","stk.",75,0,0]
["Ledningsnet - City"]
["Ledningsnet ≤ Ø50 mm","meter",75,{"$f":"3078.39-29.3","v":3049.0899999999997},3130.9]
["Ø 50mm < Ledningsnet ≤ Ø110 mm","meter",75,{"$f":"10870.68-149.89-1260.36","v":9460.43},9664.5300000000007]
["Ø110 mm < Ledningsnet ≤ Ø 250 mm","meter",75,{"$f":"18549.93-11292.34-3166.64","v":4090.9500000000003},4087.04]
["Ø 250 mm < Ledningsnet ≤ Ø 500mm","meter",75,{"$f":"1814.21-180.97-1176.36","v":456.88000000000011},573.99]
["Ledningsnet > Ø 500 mm","meter",75,0,0]
["Støbejernsledninger ≤ Ø50 mm","meter",100,29.3,21.38]
["Støbejernsledninger Ø 50mm < Ledningsnet ≤ Ø110 mm","meter",100,1260.3599999999999,1233.3]
["Støbejernsledninger Ø110 mm < Ledningsnet ≤ Ø 250 mm","meter",100,3166.64,3167.78]
["Støbejernsledninger Ø 250 mm < Ledningsnet ≤ Ø 500mm","meter",100,180.97,180.97]
["Støbejernsledninger Ledningsnet > Ø 500 mm","meter",100,0,0]
["Eternitledninger ≤ Ø50 mm","meter",75,0,0]
["Eternitledninger Ø 50mm < Ledningsnet ≤ Ø110 mm","meter",75,149.88999999999999,149.55000000000001]
["Eternitledninger Ø110 mm < Ledningsnet ≤ Ø 250 mm","meter",75,11292.34,11069.69]
["Eternitledninger Ø 250 mm < Ledningsnet ≤ Ø 500mm","meter",75,1176.3599999999999,1176.3599999999999]
["Eternitledninger Ledningsnet > Ø 500 mm","meter",75,0,0]
["Skelbrønd, Konstruktioner","stk.",50,0,0]
["Skelbrønd, Mek./EL","stk.",15,0,0]
["Inspektionsbrønd, Konstruktioner","stk.",50,0,0]
["Inspektionsbrønd, Mek./EL","stk.",15,0,0]
["Stik på ledningsnet, Konstruktioner","stk.",75,0,0]
["Stik på ledningsnet, Mek./EL","stk.",75,0,0]
["Ledningsnet - Indre city"]
["Ledningsnet ≤ Ø50 mm","meter",75,{"$f":"14076.68-111.75","v":13964.93},14239.73]
["Ø 50mm < Ledningsnet ≤ Ø110 mm","meter",75,{"$f":"30370.06-3654.77-339.68","v":26375.61},27653.26]
["Ø110 mm < Ledningsnet ≤ Ø 250 mm","meter",75,{"$f":"32186.82-15010.11-3193.63","v":13983.079999999998},13996.4]
["Ø 250 mm < Ledningsnet ≤ Ø 500mm","meter",75,{"$f":"2102.84-510.25-1449.51","v":143.08000000000015},143.08000000000001]
["Ledningsnet > Ø 500 mm","meter",75,0,0]
["Støbejernsledninger ≤ Ø50 mm","meter",100,111.75,105.32]
["Støbejernsledninger Ø 50mm < Ledningsnet ≤ Ø110 mm","meter",100,3654.77,3446.11]
["Støbejernsledninger Ø110 mm < Ledningsnet ≤ Ø 250 mm","meter",100,15010.11,13660.23]
["Støbejernsledninger Ø 250 mm < Ledningsnet ≤ Ø 500mm","meter",100,510.25,510.25]
["Støbejernsledninger Ledningsnet > Ø 500 mm","meter",100,0,0]
["Eternitledninger ≤ Ø50 mm","meter",75,0,0]
["Eternitledninger Ø 50mm < Ledningsnet ≤ Ø110 mm","meter",75,339.68,339.68]
["Eternitledninger Ø110 mm < Ledningsnet ≤ Ø 250 mm","meter",75,3193.63,3193.63]
["Eternitledninger Ø 250 mm < Ledningsnet ≤ Ø 500mm","meter",75,1449.51,1449.51]
["Eternitledninger Ledningsnet > Ø 500 mm","meter",75,0,0]
["Skelbrønd, Konstruktioner","stk.",50,0,0]
["Skelbrønd, Mek./EL","stk.",15,0,0]
["Inspektionsbrønd, Konstruktioner","stk.",50,0,0]
["Inspektionsbrønd, Mek./EL","stk.",15,0,0]
["Stik på ledningsnet, Konstruktioner","stk.",75,0,0]
["Stik på ledningsnet, Mek./EL","stk.",75,0,0]
["Ventiler"]
["Ventiler på ledningsnet ≤ Ø50 mm","stk.",75,{"$f":"22833+100+46","v":22979},{"$f":"23127+46","v":23173}]
["Ventiler på Ø 50mm < Ledningsnet ≤ Ø110 mm","stk.",75,2135,2217]
["Ventiler på Ø110 mm < Ledningsnet ≤ Ø 250 mm","stk.",75,645,658]
["Ventiler på Ø 250 mm < Ledningsnet ≤ Ø 500mm","stk.",75,48,48]
["Ventiler på ledningsnet > Ø 500 mm","stk.",75,0,0]
["Pumpestationer, bygværker og bassiner 1"]
["Pumpestation (inkl. evt. hydrofor)/trykforøger, Konstruktioner","m³/h ",50,0,null,"Nordtoft"]
["Pumpestation (inkl. evt. hydrofor)/trykforøger, Mek./EL","m³/h ",25,0]
["Pumpestation (inkl. evt. hydrofor)/trykforøger, SRO","m³/h ",10,0]
["Beholderanlæg - højdebeholder","m³",50,0]
["Beholderanlæg - vandtårn","m³",50,800,800]
["Pumpestationer, bygværker og bassiner 2"]
["Pumpestation (inkl. evt. hydrofor)/trykforøger, Konstruktioner","m³/h ",50,0,null,"Nr. Tranders"]
["Pumpestation (inkl. evt. hydrofor)/trykforøger, Mek./EL","m³/h ",25,0]
["Pumpestation (inkl. evt. hydrofor)/trykforøger, SRO","m³/h ",10,0]
["Beholderanlæg - højdebeholder","m³",50,4000,4000]
["Beholderanlæg - vandtårn","m³",50,0]
["Pumpestationer, bygværker og bassiner 3"]
["Pumpestation (inkl. evt. hydrofor)/trykforøger, Konstruktioner","m³/h ",50,0,null,"Granhøj"]
["Pumpestation (inkl. evt. hydrofor)/trykforøger, Mek./EL","m³/h ",25,0]
["Pumpestation (inkl. evt. hydrofor)/trykforøger, SRO","m³/h ",10,0]
["Beholderanlæg - højdebeholder","m³",50,0]
["Beholderanlæg - vandtårn","m³",50,2000,2000]
["Pumpestationer, bygværker og bassiner 4"]
["Pumpestation (inkl. evt. hydrofor)/trykforøger, Konstruktioner","m³/h ",50,0,null,"Sønderbro"]
["Pumpestation (inkl. evt. hydrofor)/trykforøger, Mek./EL","m³/h ",25,0]
["Pumpestation (inkl. evt. hydrofor)/trykforøger, SRO","m³/h ",10,0]
["Beholderanlæg - højdebeholder","m³",50,7600,7600]
["Beholderanlæg - vandtårn","m³",50,0]
["Pumpestationer, bygværker og bassiner 5"]
["Pumpestation (inkl. evt. hydrofor)/trykforøger, Konstruktioner","m³/h ",50,0]
["Pumpestation (inkl. evt. hydrofor)/trykforøger, Mek./EL","m³/h ",25,0]
["Pumpestation (inkl. evt. hydrofor)/trykforøger, SRO","m³/h ",10,0]
["Beholderanlæg - højdebeholder","m³",50,0]
["Beholderanlæg - vandtårn","m³",50,0]
["Pumpestationer, bygværker og bassiner 6"]
["Pumpestation (inkl. evt. hydrofor)/trykforøger, Konstruktioner","m³/h ",50,0]
["Pumpestation (inkl. evt. hydrofor)/trykforøger, Mek./EL","m³/h ",25,0]
["Pumpestation (inkl. evt. hydrofor)/trykforøger, SRO","m³/h ",10,0]
["Beholderanlæg - højdebeholder","m³",50,0]
["Beholderanlæg - vandtårn","m³",50,0]
["Pumpestationer, bygværker og bassiner 7"]
["Pumpestation (inkl. evt. hydrofor)/trykforøger, Konstruktioner","m³/h ",50,0]
["Pumpestation (inkl. evt. hydrofor)/trykforøger, Mek./EL","m³/h ",25,0]
["Pumpestation (inkl. evt. hydrofor)/trykforøger, SRO","m³/h ",10,0]
["Beholderanlæg - højdebeholder","m³",50,0]
["Beholderanlæg - vandtårn","m³",50,0]
["Pumpestationer, bygværker og bassiner 8"]
["Pumpestation (inkl. evt. hydrofor)/trykforøger, Konstruktioner","m³/h ",50,0]
["Pumpestation (inkl. evt. hydrofor)/trykforøger, Mek./EL","m³/h ",25,0]
["Pumpestation (inkl. evt. hydrofor)/trykforøger, SRO","m³/h ",10,0]
["Beholderanlæg - højdebeholder","m³",50,0]
["Beholderanlæg - vandtårn","m³",50,0]
["Pumpestationer, bygværker og bassiner 9"]
["Pumpestation (inkl. evt. hydrofor)/trykforøger, Konstruktioner","m³/h ",50,0]
["Pumpestation (inkl. evt. hydrofor)/trykforøger, Mek./EL","m³/h ",25,0]
["Pumpestation (inkl. evt. hydrofor)/trykforøger, SRO","m³/h ",10,0]
["Beholderanlæg - højdebeholder","m³",50,0]
["Beholderanlæg - vandtårn","m³",50,0]
["Pumpestationer, bygværker og bassiner 10"]
["Pumpestation (inkl. evt. hydrofor)/trykforøger, Konstruktioner","m³/h ",50,0]
["Pumpestation (inkl. evt. hydrofor)/trykforøger, Mek./EL","m³/h ",25,0]
["Pumpestation (inkl. evt. hydrofor)/trykforøger, SRO","m³/h ",10,0]
["Beholderanlæg - højdebeholder","m³",50,0]
["Beholderanlæg - vandtårn","m³",50,0]
["Pumpestationer, bygværker og bassiner 11"]
["Pumpestation (inkl. evt. hydrofor)/trykforøger, Konstruktioner","m³/h ",50,0]
["Pumpestation (inkl. evt. hydrofor)/trykforøger, Mek./EL","m³/h ",25,0]
["Pumpestation (inkl. evt. hydrofor)/trykforøger, SRO","m³/h ",10,0]
["Beholderanlæg - højdebeholder","m³",50,0]
["Beholderanlæg - vandtårn","m³",50,0]
["Pumpestationer, bygværker og bassiner 12"]
["Pumpestation (inkl. evt. hydrofor)/trykforøger, Konstruktioner","m³/h ",50,0]
["Pumpestation (inkl. evt. hydrofor)/trykforøger, Mek./EL","m³/h ",25,0]
["Pumpestation (inkl. evt. hydrofor)/trykforøger, SRO","m³/h ",10,0]
["Beholderanlæg - højdebeholder","m³",50,0]
["Beholderanlæg - vandtårn","m³",50,0]
["Pumpestationer, bygværker og bassiner 13"]
["Pumpestation (inkl. evt. hydrofor)/trykforøger, Konstruktioner","m³/h ",50,0]
["Pumpestation (inkl. evt. hydrofor)/trykforøger, Mek./EL","m³/h ",25,0]
["Pumpestation (inkl. evt. hydrofor)/trykforøger, SRO","m³/h ",10,0]
["Beholderanlæg - højdebeholder","m³",50,0]
["Beholderanlæg - vandtårn","m³",50,0]
["Pumpestationer, bygværker og bassiner 14"]
["Pumpestation (inkl. evt. hydrofor)/trykforøger, Konstruktioner","m³/h ",50,0]
["Pumpestation (inkl. evt. hydrofor)/trykforøger, Mek./EL","m³/h ",25,0]
["Pumpestation (inkl. evt. hydrofor)/trykforøger, SRO","m³/h ",10,0]
["Beholderanlæg - højdebeholder","m³",50,0]
["Beholderanlæg - vandtårn","m³",50,0]
["Pumpestationer, bygværker og bassiner 15"]
["Pumpestation (inkl. evt. hydrofor)/trykforøger, Konstruktioner","m³/h ",50,0]
["Pumpestation (inkl. evt. hydrofor)/trykforøger, Mek./EL","m³/h ",25,0]
["Pumpestation (inkl. evt. hydrofor)/trykforøger, SRO","m³/h ",10,0]
["Beholderanlæg - højdebeholder","m³",50,0]
["Beholderanlæg - vandtårn","m³",50,0]
["Pumpestationer, bygværker og bassiner 16"]
["Pumpestation (inkl. evt. hydrofor)/trykforøger, Konstruktioner","m³/h ",50,0]
["Pumpestation (inkl. evt. hydrofor)/trykforøger, Mek./EL","m³/h ",25,0]
["Pumpestation (inkl. evt. hydrofor)/trykforøger, SRO","m³/h ",10,0]
["Beholderanlæg - højdebeholder","m³",50,0]
["Beholderanlæg - vandtårn","m³",50,0]
["Pumpestationer, bygværker og bassiner 17"]
["Pumpestation (inkl. evt. hydrofor)/trykforøger, Konstruktioner","m³/h ",50,0]
["Pumpestation (inkl. evt. hydrofor)/trykforøger, Mek./EL","m³/h ",25,0]
["Pumpestation (inkl. evt. hydrofor)/trykforøger, SRO","m³/h ",10,0]
["Beholderanlæg - højdebeholder","m³",50,0]
["Beholderanlæg - vandtårn","m³",50,0]
["Pumpestationer, bygværker og bassiner 18"]
["Pumpestation (inkl. evt. hydrofor)/trykforøger, Konstruktioner","m³/h ",50,0]
["Pumpestation (inkl. evt. hydrofor)/trykforøger, Mek./EL","m³/h ",25,0]
["Pumpestation (inkl. evt. hydrofor)/trykforøger, SRO","m³/h ",10,0]
["Beholderanlæg - højdebeholder","m³",50,0]
["Beholderanlæg - vandtårn","m³",50,0]
["Pumpestationer, bygværker og bassiner 19"]
["Pumpestation (inkl. evt. hydrofor)/trykforøger, Konstruktioner","m³/h ",50,0]
["Pumpestation (inkl. evt. hydrofor)/trykforøger, Mek./EL","m³/h ",25,0]
["Pumpestation (inkl. evt. hydrofor)/trykforøger, SRO","m³/h ",10,0]
["Beholderanlæg - højdebeholder","m³",50,0]
["Beholderanlæg - vandtårn","m³",50,0]
["Pumpestationer, bygværker og bassiner 20"]
["Pumpestation (inkl. evt. hydrofor)/trykforøger, Konstruktioner","m³/h ",50,0]
["Pumpestation (inkl. evt. hydrofor)/trykforøger, Mek./EL","m³/h ",25,0]
["Pumpestation (inkl. evt. hydrofor)/trykforøger, SRO","m³/h ",10,0]
["Beholderanlæg - højdebeholder","m³",50,0]
["Beholderanlæg - vandtårn","m³",50,0]
["Pumpestationer, bygværker og bassiner 21"]
["Pumpestation (inkl. evt. hydrofor)/trykforøger, Konstruktioner","m³/h ",50,0]
["Pumpestation (inkl. evt. hydrofor)/trykforøger, Mek./EL","m³/h ",25,0]
["Pumpestation (inkl. evt. hydrofor)/trykforøger, SRO","m³/h ",10,0]
["Beholderanlæg - højdebeholder","m³",50,0]
["Beholderanlæg - vandtårn","m³",50,0]
["Pumpestationer, bygværker og bassiner 22"]
["Pumpestation (inkl. evt. hydrofor)/trykforøger, Konstruktioner","m³/h ",50,0]
["Pumpestation (inkl. evt. hydrofor)/trykforøger, Mek./EL","m³/h ",25,0]
["Pumpestation (inkl. evt. hydrofor)/trykforøger, SRO","m³/h ",10,0]
["Beholderanlæg - højdebeholder","m³",50,0]
["Beholderanlæg - vandtårn","m³",50,0]
["Pumpestationer, bygværker og bassiner 23"]
["Pumpestation (inkl. evt. hydrofor)/trykforøger, Konstruktioner","m³/h ",50,0]
["Pumpestation (inkl. evt. hydrofor)/trykforøger, Mek./EL","m³/h ",25,0]
["Pumpestation (inkl. evt. hydrofor)/trykforøger, SRO","m³/h ",10,0]
["Beholderanlæg - højdebeholder","m³",50,0]
["Beholderanlæg - vandtårn","m³",50,0]
["Pumpestationer, bygværker og bassiner 24"]
["Pumpestation (inkl. evt. hydrofor)/trykforøger, Konstruktioner","m³/h ",50,0]
["Pumpestation (inkl. evt. hydrofor)/trykforøger, Mek./EL","m³/h ",25,0]
["Pumpestation (inkl. evt. hydrofor)/trykforøger, SRO","m³/h ",10,0]
["Beholderanlæg - højdebeholder","m³",50,0]
["Beholderanlæg - vandtårn","m³",50,0]
["Pumpestationer, bygværker og bassiner 25"]
["Pumpestation (inkl. evt. hydrofor)/trykforøger, Konstruktioner","m³/h ",50,0]
["Pumpestation (inkl. evt. hydrofor)/trykforøger, Mek./EL","m³/h ",25,0]
["Pumpestation (inkl. evt. hydrofor)/trykforøger, SRO","m³/h ",10,0]
["Beholderanlæg - højdebeholder","m³",50,0]
["Beholderanlæg - vandtårn","m³",50,0]
["Pumpestationer, bygværker og bassiner 26"]
["Pumpestation (inkl. evt. hydrofor)/trykforøger, Konstruktioner","m³/h ",50,0]
["Pumpestation (inkl. evt. hydrofor)/trykforøger, Mek./EL","m³/h ",25,0]
["Pumpestation (inkl. evt. hydrofor)/trykforøger, SRO","m³/h ",10,0]
["Beholderanlæg - højdebeholder","m³",50,0]
["Beholderanlæg - vandtårn","m³",50,0]
["Pumpestationer, bygværker og bassiner 27"]
["Pumpestation (inkl. evt. hydrofor)/trykforøger, Konstruktioner","m³/h ",50,0]
["Pumpestation (inkl. evt. hydrofor)/trykforøger, Mek./EL","m³/h ",25,0]
["Pumpestation (inkl. evt. hydrofor)/trykforøger, SRO","m³/h ",10,0]
["Beholderanlæg - højdebeholder","m³",50,0]
["Beholderanlæg - vandtårn","m³",50,0]
["Pumpestationer, bygværker og bassiner 28"]
["Pumpestation (inkl. evt. hydrofor)/trykforøger, Konstruktioner","m³/h ",50,0]
["Pumpestation (inkl. evt. hydrofor)/trykforøger, Mek./EL","m³/h ",25,0]
["Pumpestation (inkl. evt. hydrofor)/trykforøger, SRO","m³/h ",10,0]
["Beholderanlæg - højdebeholder","m³",50,0]
["Beholderanlæg - vandtårn","m³",50,0]
["Pumpestationer, bygværker og bassiner 29"]
["Pumpestation (inkl. evt. hydrofor)/trykforøger, Konstruktioner","m³/h ",50,0]
["Pumpestation (inkl. evt. hydrofor)/trykforøger, Mek./EL","m³/h ",25,0]
["Pumpestation (inkl. evt. hydrofor)/trykforøger, SRO","m³/h ",10,0]
["Beholderanlæg - højdebeholder","m³",50,0]
["Beholderanlæg - vandtårn","m³",50,0]
["Pumpestationer, bygværker og bassiner 30"]
["Pumpestation (inkl. evt. hydrofor)/trykforøger, Konstruktioner","m³/h ",50,0]
["Pumpestation (inkl. evt. hydrofor)/trykforøger, Mek./EL","m³/h ",25,0]
["Pumpestation (inkl. evt. hydrofor)/trykforøger, SRO","m³/h ",10,0]
["Beholderanlæg - højdebeholder","m³",50,0]
["Beholderanlæg - vandtårn","m³",50,0]
["Pumpestationer, bygværker og bassiner 31"]
["Pumpestation (inkl. evt. hydrofor)/trykforøger, Konstruktioner","m³/h ",50,0]
["Pumpestation (inkl. evt. hydrofor)/trykforøger, Mek./EL","m³/h ",25,0]
["Pumpestation (inkl. evt. hydrofor)/trykforøger, SRO","m³/h ",10,0]
["Beholderanlæg - højdebeholder","m³",50,0]
["Beholderanlæg - vandtårn","m³",50,0]
["Pumpestationer, bygværker og bassiner 32"]
["Pumpestation (inkl. evt. hydrofor)/trykforøger, Konstruktioner","m³/h ",50,0]
["Pumpestation (inkl. evt. hydrofor)/trykforøger, Mek./EL","m³/h ",25,0]
["Pumpestation (inkl. evt. hydrofor)/trykforøger, SRO","m³/h ",10,0]
["Beholderanlæg - højdebeholder","m³",50,0]
["Beholderanlæg - vandtårn","m³",50,0]
["Pumpestationer, bygværker og bassiner 33"]
["Pumpestation (inkl. evt. hydrofor)/trykforøger, Konstruktioner","m³/h ",50,0]
["Pumpestation (inkl. evt. hydrofor)/trykforøger, Mek./EL","m³/h ",25,0]
["Pumpestation (inkl. evt. hydrofor)/trykforøger, SRO","m³/h ",10,0]
["Beholderanlæg - højdebeholder","m³",50,0]
["Beholderanlæg - vandtårn","m³",50,0]
["Pumpestationer, bygværker og bassiner 34"]
["Pumpestation (inkl. evt. hydrofor)/trykforøger, Konstruktioner","m³/h ",50,0]
["Pumpestation (inkl. evt. hydrofor)/trykforøger, Mek./EL","m³/h ",25,0]
["Pumpestation (inkl. evt. hydrofor)/trykforøger, SRO","m³/h ",10,0]
["Beholderanlæg - højdebeholder","m³",50,0]
["Beholderanlæg - vandtårn","m³",50,0]
["Pumpestationer, bygværker og bassiner 35"]
["Pumpestation (inkl. evt. hydrofor)/trykforøger, Konstruktioner","m³/h ",50,0]
["Pumpestation (inkl. evt. hydrofor)/trykforøger, Mek./EL","m³/h ",25,0]
["Pumpestation (inkl. evt. hydrofor)/trykforøger, SRO","m³/h ",10,0]
["Beholderanlæg - højdebeholder","m³",50,0]
["Beholderanlæg - vandtårn","m³",50,0]
["Andre"]
["Afregningsmålere, mekaniske, ","stk.",8,20978,21076]
["Afregningsmålere, elektroniske ≤ Ø 110mm (Qn 10)","stk.",10,1058,1068]
["Afregningsmålere, elektroniske > Ø110 mm","stk.",10,44,48]
["SRO-brønd/kvarterbrønd/sektionsbrønd, Konstruktioner","stk.",50,0,0]
["SRO-brønd/kvarterbrønd/sektionsbrønd, Mek./EL","stk.",15,0,0]
["SRO-brønd/kvarterbrønd/sektionsbrønd, SRO","stk.",10,0,0]

{"sheet":"Fællesfunktionsanlæg","index":2,"n_rows":11,"n_cols":6,"rows_kept":11,"cut":false,"hidden":false,"merged":[[0,5,1,5],[0,0,1,0],[0,1,1,1],[0,2,1,2],[0,3,1,3],[0,4,1,4]]}
["Fællesfunktionsanlæg","Enhed","Standard-levetid","Samlet mængde per 31/12-2014","Samlet mængde per 31/12-2015","Bemærk-ninger"]
[]
["Andre"]
["Køretøjer, personbil","stk.",5,1,1]
["Køretøjer, små lastvogne (< 3.500 kg.)","stk.",5,19,20]
["Køretøjer, store lastvogne (> 3.500 kg.)","stk.",5,1,1]
["Køretøjer, entreprenørmaskiner","stk.",5,0,0]
["Øvrige"]
["Solcelleanlæg","KWh",25,0,0]
["EDB, tablets og navigationsudstyr","stk.",5,0,0]
["Elektroniske kort","stk.",5,0,0]

{"sheet":"Drop downliste","index":3,"n_rows":13,"n_cols":11,"rows_kept":13,"cut":false,"hidden":true,"merged":[]}
[]
[null,"datakvalitet","Serviceselskab","Overheads","Infrastrukturomlægninger","Infrastruktur per år","år 1","år 2","år 3","år 4","år 5"]
[null,null,null,null,null,null,2010,2011,2012,2013,2014]
[null,1,"ja","Full-cost","ja",0.1]
[null,2,"nej","Direct-cost","nej",0.2]
[null,3,null,"Nøgletalsfordeling",null,0.3]
[null,null,null,"Activity based cost",null,0.4]
[null,null,null,"Andet",null,0.5]
[null,null,null,null,null,0.6]
[null,null,null,null,null,0.7]
[null,null,null,null,null,0.8]
[null,null,null,null,null,0.9]
[null,null,null,null,null,1]